Workbook

Sheet ReadMe
A1: Instructions for Electronic Forms, pg 1
A2: 2015 Washington State Energy Code Compliance Forms for Commercial Buildings including R2, R3, R4 over 3 stories and all R1
B3: Revised August 2016
B4: Commercial Provision Chapters 1 - 5 of the 2015 Washington State Energy Code apply to all commercial occupancies, R-2, R-3 and R-4 occupancies greater than 3 stories above grade, and R-1 occupancy (all building heights).
A5: Intro | B5: This file, LTG15-v1.XLSM, has electronic compliance forms for electrical power and lighting system provisions as defined in Section C405 and Chapter 5. This includes interior and exterior lighting systems, electric motors, and transformers. There are two companion files: ENV15-v1.XLSM (Sections C303, C402, Chapter 5, and Appendix A envelope requirements) and MECH15-v1.XLSM (Section C403 and Chapter 5 mechanical systems requirements).
A6: Energy Code | B6: This form is a compliance aid and is not a substitute for the full energy code text or specific jurisdiction compliance requirements. Users should refer to the code text and contact the local jurisdiction for complete information. The full 2015 WSEC code text is available for download from the NEEC website:
B7: http:/www.neec.net/energy-codes
A8: Training | B8: Refer to the NEEC website for instruction on how to complete all of the 2015 WSEC Compliance Forms.
A9: Start-up | B9: Select this file from the NEEC website to download to your computer. When opening the file be sure to Enable Macros and if applicable Enable Content.
A10: Overview | B10: This file is an Excel workbook that contains multiple compliance forms and resources in Excel worksheets. Each worksheet is indicated by a tab at the bottom of the screen. You may visit each worksheet by selecting it's tab.
B11: Most calculations are automated. Cells that display informational text and the results of calculations are write-protected and cannot be edited.
A12: Save Files | B12: This file is saved in the same manner as any standard Excel file.
A13: Getting Around | B13: Some forms have multiple pages. All pages are available on screen when you select the tab for a form (worksheet). Use the scroll bars or page down key to find additional pages located below the first page.
A14: Input Cells | B14: All general project information and the date are entered once on LTG-SUM. This information is automatically replicated on all other LTG forms. The LTG-SUM form accompanies all other LTG forms except LTG-EXT, which is a stand alone form.
B15: Only input cells are accessible. If you try to edit a write-protected cell an error message will appear requesting a password. A password IS NOT required to complete these forms. You may use the TAB key to move to the next input cell. If the TAB doesn't take you where you want to go, use your mouse to move around the form.
B16: Avoid excessively long text strings when entering information. In some cases, text that extends beyond the available space will not be visible. In most cases the text will wrap within the cell. This may force part of the form onto a new page.
B17: To enter the date, use this format: mm/dd/yyyy. For example, you would enter 7/1/2013 or 12/21/2014.
B18: Check boxes can be checked or unchecked by clicking in the box with your mouse. Radio buttons (circles) allow only one in a set to be selected.
B19: Drop-down lists have an arrow at the right side of the cell. Click on the arrow with your mouse and select the appropriate option. Use the delete button on your computer to clear a drop-down entry.
B20: When a form has a space for notes or explanation, click anywhere in the space to edit.
A21: Personalizing | B21: You can personalize the forms with your company name, address, phone, or any other information. This is done by editing the header or footer in Excel.
A22: Adding And Deleting Lines | B22: Many tables, such as for listing proposed lighting fixture types, have a certain number of lines available for entering data. You may need more lines to enter all your information. Where this feature is available, you can add additional lines to the table by selecting the "+" button on the right hand side of the table with your mouse.
B23: To remove lines that you have added, select the "-" button with your mouse. This will delete the last line of the section. You cannot remove lines that were not added; an error message will appear if you try.
B24: If you add additional lines with this method, the pagination may be affected forcing the forms to carry additional lines over to other pages. Be sure to submit all pages to the plans examiner.
A25: Calculation Area | B25: You must select a Calculation Area on LTG-INT-SPACE or LTG-INT-BLD to enable the calculations in these forms.
A26: LPA Calculation Type | B26: You must select a LPA Calculation Type on LTG-INT-SPACE or LTG-INT-BLD to enable the calculations in these forms.
A27: Exterior LTG Zone | B27: You must select a Lighting Zone on LTG-EXT (line 12) to activate this worksheet to display the applicable base site allowance and automatically calculate the applicable exterior lighting power allowances.B54
A28: Instructions for Electronic Forms, pg 2
A29: =A2 -> 2015 Washington State Energy Code Compliance Forms for Commercial Buildings including R2, R3, R4 over 3 stories and all R1
B30: =B3 -> Revised August 2016
A31: Interior LTG Building Area Method | B31: For projects complying via the Building Area Method, provide the total gross interior area for each Building Area Type in the Maximum Allowed Lighting Wattage table using the drop down menu.
B32: Assign a Building Area using the drop menu for each lighting fixture type defined in the Proposed Lighting Wattage table. The worksheet will total all fixtures assigned to each Building Area.
B33: Each Buidling Area shall comply independently.
A34: Interior LTG Space-By-Space Method | B34: For projects complying via the Space-By-Space Method, provide total gross interior area for each Space Type in the Maximum Allowed Lighting Wattage table using the drop down menu.
B35: For Atriums and any space utilizing the additional lighting wattage allowance based on ceiling height per Footnotes d thru f, provide total gross interior area and ceiling height (above finished floor) in the Maximum Allowed Lighting Wattage table.
B36: All Display lighting shall be entered in the LTG-INT-DISPLAY worksheet. Results from this worksheet automatically transfer to the LTG-INT-SPACE worksheet in the assigned locations under Retail Display Allowance, Lobby Art/Exhibit Allowance and Proposed Retail Display Lighting cells.
A37: Interior LTG Retail Display | B37: For projects with eligible Retail Sales display lighting that is in addition to Retail Sales general area lighting, select the Retail Display category per Section C405.4.2.2.1 from the drop down menu provided, and enter the total gross interior area of the footprint illuminated by display lighting in the Maximum Allowed Retail Display Lighting Wattage table. Assign a corresponding Retail Display category to each lighting fixture type defined in the Proposed Retail Display Lighting Wattage table using the drop down menu.
B38: For projects with eligible Lobby Art/Exhibit display lighting that is in addition to Lobby general area lighting, enter a unique name for each Lobby that this allowance will be applied to, and enter the total gross interior area of the Lobby in the Maximum Allowed Lobby Art/Exhibit Display Lighting Wattage table. Assign a corresponding Lobby to each lighting fixture type defined in the Proposed Lobby Art/Exhibit Display Lighting Wattage table.
B39: The total Retail Display and Lobby Art/Exhibit Display gross interior areas entered in the LTG-INT-DISPLAY worksheet may not exceed the total Retail Sales and Lobby Art/Exhibit Display gross interior areas entered in the LTG-INT-SPACE worksheet.
A40: Exterior LTG | B40: Provide square-foot surface area, perimeter linear feet, or number of items for each Surface Type in the Tradable and Non-Tradable Maximum Allowed Lighting Wattage tables using the drop down menus.
B41: Assign a Surface using the drop menu for each exterior lighting fixture type defined in the Tradable and Non-Tradable Proposed Lighting Wattage tables.
A42: Printing | B42: The forms should print on any printer supported by your operating system. You will need to have the following TrueType fonts installed under Windows: Arial, Times New Roman, Courier New and Wingdings. These are all standard Windows fonts.
B43: If you are losing form details when printing, you may have a shortage of printer memory. Try printing problem pages individually.
B44: By default, only the active worksheet is printed. To print more than one worksheet at a time, open your print set-up menu and select either the page range you wish to print or Entire Workbook.
B45: Forms (worksheets) in a workbook may not be deleted because the file is locked.
A46: Blank Forms | B46: To print blank forms, delete all of the heading information at the beginning of LTG-SUM. For less than 50% alterations, select the Calculation area in the LTG-INT-SPACE form before printing.
B47: For each radio button group there is a button labeled "Clear." Clicking this button will clear the other buttons so that they will print as empty circles. The "Clear" button will not print.
A48: End of Instructions for Electronic Forms

Sheet LTG-SUM
A1: Lighting Summary | G1: LGT-SUM
A2: =ReadMe!A2 -> 2015 Washington State Energy Code Compliance Forms for Commercial Buildings including R2, R3, R4 over 3 stories and all R1 | G2: =ReadMe!B3 -> Revised August 2016
A3: Project Info | B3: Project Title: | C3: 1 - This title will copy onto other forms | F3: Date | G3: 2016-07-01
F4: For Building Department Use
B5: Company Name:
B6: Company Address:
B7: Applicant Name:
B8: Applicant Phone:
B9: Applicant Email:
A11: Project Description | F11: FALSE
A13: Building Additions | C13: Compliance Method | F13: Interior lighting | G13: Exterior lighting
A17: Interior and Exterior | C17: Lighting Power | E17: Interior lighting | F17: Parking garage | G17: Exterior lighting
A18: Lighting Alterations
C22: Lighting Controls | E22: Interior lighting | F22: Parking garage | G22: Exterior lighting
A27: Change of Space Use
A29: Lighting Summary, cont. | G29: LGT-SUM
A30: =A2 -> 2015 Washington State Energy Code Compliance Forms for Commercial Buildings including R2, R3, R4 over 3 stories and all R1 | G30: =G2 -> Revised August 2016
A31: Project Title: | B31: =IF('LTG-SUM'!C3="1 - This title will copy onto other forms","Fill this line out at top of LGT-SUM",'LTG-SUM'!C3) -> Fill this line out at top of LGT-SUM | F31: Date | G31: =G3 -> 2016-07-01
A32: Interior Lighting System
A33: Description
A38: Interior Lighting Power Allowance Method
A40: Interior Lighting Controls | F40: FALSE
A42: Dwelling Unit Interior Lighting
A44: Exterior Lighting System Description

Sheet LTG-INT-SPACE
A1: Interior Lighting - Space-By-Space Method | F1: LTG-INT-SPACE
A2: ='LTG-SUM'!A2 -> 2015 Washington State Energy Code Compliance Forms for Commercial Buildings including R2, R3, R4 over 3 stories and all R1 | F2: ='LTG-SUM'!G2 -> Revised August 2016
A3: Project Title: | B3: =IF('LTG-SUM'!C3="1 - This title will copy onto other forms","Fill this line out on LGT-SUM",'LTG-SUM'!C3) -> Fill this line out on LGT-SUM | E3: ='LTG-SUM'!F3 -> Date | F3: ='LTG-SUM'!G3 -> 2016-07-01
A4: Calculation Area NOTE 9 | E4: ='LTG-SUM'!F4 -> For Building Department Use
A8: LPA Calculation Type
A10: Maximum Allowed Lighting Wattage NOTE 1
A11: Location (plan #, room #) | B11: Space Type | C11: Ceiling Height NOTE 2 | D11: Gross Interior Area in ft2 | E11: Allowed Watts per ft2 | F11: Watts Allowed (watts/ft2 x area)
E12: =IF(B12="",0,IF(B12="Atrium",IF(ISNUMBER(C12),MIN(C12,40)*0.02+MAX(C12-40,0)*0.02+IF(C12>40,0.03,0),0),VLOOKUP(B12,$B$67:$C$165,2,FALSE)*IF(ISNUMBER(C12),MAX(1,1+0.02*(C12-VLOOKUP(B12,$B$67:$D$165,3,FALSE))),1))) -> 0 | F12: =IF(IntCalculationScopeSBS=1,0,E12*D12) -> 0
E13: =IF(B13="",0,IF(B13="Atrium",IF(ISNUMBER(C13),MIN(C13,40)*0.02+MAX(C13-40,0)*0.02+IF(C13>40,0.03,0),0),VLOOKUP(B13,$B$67:$C$165,2,FALSE)*IF(ISNUMBER(C13),MAX(1,1+0.02*(C13-VLOOKUP(B13,$B$67:$D$165,3,FALSE))),1))) -> 0 | F13: 0
E14: 0 | F14: 0
E15: 0 | F15: 0
E16: 0 | F16: 0
E17: 0 | F17: 0 | K17: 1
C19: Total Area | D19: =SUM(D12:D18) -> 0
E20: Retail Display Allowance from LTG-INT-DISPLAY | F20: =IF(IntAlt_LT50pctSBS,0,'LTG-INT-DISPLAY'!F35) -> 0
E21: =IF(IntAlt_LT50pctSBS,"Enter Total Existing Lighting Watts (prior to Alteration)","") -> 
B22: Lobby Art/Exhibit Display Allowance from LTG-INT-DISPLAY NOTE 8 | C22: ='LTG-INT-DISPLAY'!F64 -> 0 | E22: Allowed Watts | F22: =IF(IntAlt_LT50pctSBS,F21,ROUNDUP(SUM(F12:F21),0)) -> 0
A23: =IF(OR(ISNA(RetailAllowance),ISNA(F39)), "ERROR - Retail display data on LTG-INT-DISPLAY is incomplete", IF(ISNA(LobbyArtAllowance), "ERROR - Lobby art/exhibit lighting data on LTG-INT-DISPLAY is incomplete", IF(NOT(ISERROR(FIND("DOES NOT COMP",'LTG-INT-DISPLAY'!F84))), "ERROR - Lobby art/exhibit lighting does not comply", IF(OR(F22>0,F41>0), IF(intCalcScopeSBSset, IF(CalcTypeSBSset, "", "ERROR - LPA Calculation Type Not Set. "), "ERROR - Calculation Area Not Set. "), "")))) -> 
A26: Proposed Lighting Wattage NOTE 3
A27: Location (plan #, room #) | B27: Fixture Description NOTE 4, 5, 6 | C27: Number of Fixtures | D27: Watts/ Fixture NOTE 7 | F27: Watts Proposed
F28: =C28*D28 -> 0
F29: 0
F30: 0
F31: 0
F32: 0
F33: 0
F34: 0
F35: 0
F36: 0
F37: 0
F38: =C38*D38 -> 0 | K38: 1
E39: Proposed Retail Display Lighting from LTG-INT-DISPLAY | F39: ='LTG-INT-DISPLAY'!F33 -> 0
E41: Total Proposed Watts | F41: =ROUND(SUM(F28:F39),0) -> 0
A43: Interior Lighting Power Allowance | F43: =IF(ISERROR(FIND("ERROR",A23)), IF(AND(F22=0,F41=0),"", IF(ROUND(F41,0)>ROUND(F22,0), "DOES NOT COMPLY", IF(CalcTypeSBS<>2, "COMPLIES", IF(ROUND(F41,0)>ROUND(F22*0.75,0), "DOES NOT COMPLY WITH C406.3", "COMPLIES WITH C406.3")))), "CALCULATION ERROR") -> 
B62: Count | C62: Area
A63: retail sales Zones | B63: =COUNTIF(B12:B20,"*Sales area") -> 0 | C63: =SUMIF(B12:B20,"*Sales area",D12:D20) -> 0
A64: lobby | B64: =COUNTIF(B12:B20,"Lobby*") -> 0 | C64: =SUMIF(B12:B20,"Lobby*",D12:D20) -> 0
A66: 2012 Space-by-Space areas | B66: 2015 Space-by-Space areas | C66: maxlpd | D66: ceilinghgt
A67: Atrium | B67: Atrium
A68: Audience/seating area: auditorium | B68: Audience/seating area (permanent): auditorium | C68: 0.5 | D68: 20
A69: Convention center: Audience/seating area | B69: Audience/seating area (permanent): convention center | C69: 0.66 | D69: 20
A70: Gymnasium/fitness center: Gymnasium audience/seating | B70: Audience/seating area (permanent): gymnasium | C70: 0.34 | D70: 20
A71: Audience/seating area: motion picture theater | B71: Audience/seating area (permanent): motion picture theater | C71: 0.91 | D71: 20
A72: Court/police/penitentiary: Penitentiary audience seating | B72: Audience/seating area (permanent): penitentiary | C72: 0.22 | D72: 20
A73: Audience/seating area: performing arts theater | B73: Audience/seating area (permanent): performing arts theater | C73: 1.94 | D73: 20
A74: Religious building: Audience seating | B74: Audience/seating area (permanent): religious building | C74: 1.22 | D74: 20
A75: Sports arena: Audience seating | B75: Audience/seating area (permanent): sports arena | C75: 0.34 | D75: 20
B76: Audience/seating area (permanent): other | C76: 0.34 | D76: 20
A77: Bank/office ‑ Banking activity area | B77: Banking activity area | C77: 0.81 | D77: 20
B78: Breakroom (see Lounge/breakroom) | C78: 0 | D78: 20
A79: Classroom/lecture/training | B79: Classroom/lecture/training | C79: 1 | D79: 20
A80: Court/police/penitentiary: Penitentiary classroom | B80: Classroom/lecture/training: penitentiary | C80: 1.07 | D80: 20
A81: Conference/meeting/multipurpose | B81: Conference/meeting/multipurpose | C81: 0.98 | D81: 20
B82: Copy/print room | C82: 0.58 | D82: 20
B83: Corridor: facility for the visually impaired | C83: 0.74 | D83: 20
A84: Health care clinic/hospital: Corridors/transition | B84: Corridor: hospital | C84: 0.63 | D84: 20
A85: Manufacturing: Corridors/transition | B85: Corridor: manufacturing | C85: 0.33 | D85: 20
A86: Corridor/transition | B86: Corridor: all other | C86: 0.53 | D86: 20
A87: Court/police station/penitentiary: Courtroom | B87: Courtroom | C87: 1.38 | D87: 20
B88: Computer room | C88: 1.37 | D88: 20
A89: Court/police/penitentiary: Penitentiary dining | B89: Dining area: penitentiary | C89: 0.77 | D89: 20
B90: Dining area: facility for the visually impaired | C90: 1.52 | D90: 20
A91: Dining area: Bar/lounge/leisure dining | B91: Dining area: Bar/lounge/leisure dining | C91: 0.86 | D91: 20
A92: Dining area: Family dining area | B92: Dining area: Family dining area | C92: 0.71 | D92: 20
B93: Dining area: all other | C93: 0.52 | D93: 20
A94: Electrical/mechanical | B94: Electrical/mechanical | C94: 0.76 | D94: 20
B95: Emergency vehicle garage | C95: 0.45 | D95: 20
A96: Food preparation | B96: Food preparation | C96: 0.79 | D96: 20
B97: Guest room | C97: 0.38 | D97: 20
A98: Laboratory for classrooms | B98: Laboratory for classrooms | C98: 1.02 | D98: 20
A99: Laboratory for medical/industrial/research | B99: Laboratory for medical/industrial/research | C99: 1.45 | D99: 20
B100: Laundry/washing area | C100: 0.48 | D100: 20
B101: Loading dock, interior | C101: 0.38 | D101: 20
B102: Lobby: facility for the visually impaired | C102: 1.44 | D102: 20
B103: Lobby: elevator | C103: 0.51 | D103: 20
A104: Hotel: Hotel lobby | B104: Lobby: hotel | C104: 0.85 | D104: 20
A105: Lobby for motion picture theater | B105: Lobby: motion picture theater | C105: 0.42 | D105: 20
A106: Lobby for performing arts theater | B106: Lobby: performing arts theater | C106: 1.6 | D106: 20
A107: Lobby | B107: Lobby: all other | C107: 0.72 | D107: 20
A108: Locker room | B108: Locker room | C108: 0.6 | D108: 20
A109: Lounge recreation | B109: Lounge/breakroom: health care facility | C109: 0.74 | D109: 20
A110: Lounge recreation | B110: Lounge/breakroom: all other | C110: 0.58 | D110: 20
A111: Office - Enclosed | B111: Office: Enclosed | C111: 0.89 | D111: 9
A112: Office - Open plan | B112: Office: Open plan | C112: 0.78 | D112: 9
A113: Parking garage ‑ Garage areas | B113: Parking area, interior | C113: 0.15 | D113: 20
A114: Health care clinic/hospital: Pharmacy | B114: Pharmacy area | C114: 0.91 | D114: 20
B115: Restroom: facility for the visually impaired | C115: 0.97 | D115: 20
A116: Restroom | B116: Restroom: all other | C116: 0.78 | D116: 20
A117: Sales area | B117: Sales area | C117: 1.27 | D117: 20
B118: Seating area, general | C118: 0.43 | D118: 20
B119: Stairway (see space containing stairway) | C119: 0 | D119: 20
A120: Stairway | B120: Stairwell | C120: 0.55 | D120: 20
A121: Storage | B121: Storage room | C121: 0.5 | D121: 20
A122: Automotive ‑ Service/repair | B122: Vehicular maintenance | C122: 0.54 | D122: 20
A123: Workshop | B123: Workshop | C123: 1.27 | D123: 20
B124: Automotive - See Vehicular maintenance) | C124: 0 | D124: 20
A125: Convention center: Exhibit space | B125: Convention center: Exhibit space | C125: 1.16 | D125: 20
A126: Dormitory living quarters | B126: Dormitory living quarters | C126: 0.3 | D126: 20
B127: Facility for the visually impaired: Chapel | C127: 1.77 | D127: 20
B128: Facility for the visually impaired: Recreation room | C128: 1.93 | D128: 20
A129: Fire stations: Engine rooms | B129: Fire stations: Engine rooms | C129: 0.45 | D129: 20
A130: Fire stations: Sleeping quarters | B130: Fire stations: Sleeping quarters | C130: 0.18 | D130: 20
A131: Gymnasium/fitness center: Fitness area | B131: Gymnasium/fitness center: Exercise area | C131: 0.58 | D131: 20
A132: Gymnasium/fitness center: Playing area | B132: Gymnasium/fitness center: Playing area | C132: 0.96 | D132: 20
A133: Health care clinic/hospital: Exam/treatment | B133: Health care facility: Exam/treatment | C133: 1.33 | D133: 20
A134: Health care clinic/hospital: Radiology/imaging | B134: Health care facility: Imaging room | C134: 1.06 | D134: 20
A135: Health care clinic/hospital: Medical supplies | B135: Health care facility: Medical supplies | C135: 0.59 | D135: 20
A136: Health care clinic/hospital: Nursery | B136: Health care facility: Nursery | C136: 0.7 | D136: 20
A137: Health care clinic/hospital: Nurse station | B137: Health care facility: Nurse station | C137: 0.57 | D137: 20
A138: Health care clinic/hospital: Operating room | B138: Health care facility: Operating room | C138: 1.51 | D138: 20
A139: Health care clinic/hospital: Patient room | B139: Health care facility: Patient room | C139: 0.5 | D139: 20
A140: Health care clinic/hospital: Physical therapy | B140: Health care facility: Physical therapy | C140: 0.73 | D140: 20
A141: Health care clinic/hospital: Recovery | B141: Health care facility: Recovery | C141: 0.92 | D141: 20
A142: Library: Reading area | B142: Library: Reading area | C142: 0.74 | D142: 9
A143: Library: Stacks | B143: Library: Stacks | C143: 1.37 | D143: 9
A144: Manufacturing: Detailed manufacturing | B144: Manufacturing: Detailed manufacturing | C144: 1.03 | D144: 20
A145: Manufacturing: Equipment room | B145: Manufacturing: Equipment room | C145: 0.59 | D145: 20
A146: Manufacturing: Extra high bay (> 50 ft floor-ceiling ht.) | B146: Manufacturing: Extra high bay (> 50 ft floor-ceiling ht.) | C146: 0.84 | D146: 20
A147: Manufacturing: High bay (25 ‑ 50 ft floor-ceiling ht.) | B147: Manufacturing: High bay (25 ‑ 50 ft floor-ceiling ht.) | C147: 0.98 | D147: 20
A148: Manufacturing: Low bay (< 25 ft floor-ceiling ht.) | B148: Manufacturing: Low bay (< 25 ft floor-ceiling ht.) | C148: 0.95 | D148: 20
A149: Museum: General exhibition | B149: Museum: General exhibition | C149: 0.84 | D149: 20
A150: Museum: Restoration | B150: Museum: Restoration | C150: 0.82 | D150: 20
A151: Dressing/fitting room performing arts theater | B151: Performing arts theater: Dressing/fitting room | C151: 0.32 | D151: 20
A152: Post office: Sorting area | B152: Post office: Sorting area | C152: 0.75 | D152: 20
A153: Religious building: Fellowship hall | B153: Religious building: Fellowship hall | C153: 0.51 | D153: 20
A154: Religious building: Worship pulpit/choir | B154: Religious building: Worship pulpit/choir | C154: 1.22 | D154: 20
A155: Retail: Dressing/fitting area | B155: Retail: Dressing/fitting area | C155: 0.57 | D155: 20
A156: Retail: Mall concourse | B156: Retail: Mall concourse | C156: 0.88 | D156: 20
A157: Sports arena: Court sports area ‑ Class 1 | B157: Sports arena: Court sports area ‑ Class 1 | C157: 2.41 | D157: 20
A158: Sports arena: Court sports area ‑ Class 2 | B158: Sports arena: Court sports area ‑ Class 2 | C158: 1.54 | D158: 20
A159: Sports arena: Court sports area ‑ Class 3 | B159: Sports arena: Court sports area ‑ Class 3 | C159: 0.96 | D159: 20
A160: Sports arena: Court sports area ‑ Class 4 | B160: Sports arena: Court sports area ‑ Class 4 | C160: 0.58 | D160: 20
A161: Transportation: Air/train/bus baggage area | B161: Transportation: Baggage/carousel area | C161: 0.42 | D161: 20
A162: Transportation: Airport concourse | B162: Transportation: Airport concourse | C162: 0.29 | D162: 20
A163: Transportation: Terminal ‑ Ticket counter | B163: Transportation: Terminal ‑ Ticket counter | C163: 0.64 | D163: 20
A164: Warehouse: Fine material storage | B164: Warehouse: Medium/bulky palletized items | C164: 0.46 | D164: 20
A165: Warehouse: Medium/bulky material | B165: Warehouse: Smaller, hand carried items | C165: 0.76 | D165: 20
A170: 2012 categories not used in 2015
A171: Transportation: Audience seating | B171: now either audience/seating (permanent): all other or Seating area, general
A172: Hotel: Guest rooms | B172: now just single Guest rooms
A173: Hotel: Highway lodging guest rooms | B173: now just single Guest rooms
A174: Hotel: Dining area | B174: now Dining: All other
A175: Health care clinic/hospital: Emergency | B175: now done like other spaces with exam room, nurses station and such
A176: Library: Card file and cataloguing | B176: not sure
A177: Court/police station/penitentiary: Confinement cells
A178: Court/police station/penitentiary: Judge chambers

Sheet LTG-INT-DISPLAY
A1: Interior Display Lighting - Space-by-Space | F1: LTG-INT-DISPLAY
A2: ='LTG-SUM'!A2 -> 2015 Washington State Energy Code Compliance Forms for Commercial Buildings including R2, R3, R4 over 3 stories and all R1 | F2: ='LTG-SUM'!G2 -> Revised August 2016
A3: ='LTG-SUM'!B3 -> Project Title: | B3: =IF('LTG-SUM'!C3="1 - This title will copy onto other forms","Fill this line out on LGT-SUM",'LTG-SUM'!C3) -> Fill this line out on LGT-SUM | E3: ='LTG-SUM'!F3 -> Date | F3: ='LTG-SUM'!G3 -> 2016-07-01
E4: ='LTG-SUM'!F4 -> For Building Department Use
A6: Maximum Allowed Retail Display Lighting Wattage
A7: Location (plan #, room #) | B7: Retail Sales Area Type NOTE 1 | D7: Gross Interior Area in ft2 | E7: Allowed Watts per ft2 NOTE 2 | F7: Watts Allowed (watts/ft2 x area)
E8: =IF(B8="",0,VLOOKUP(B8,$E$91:$F$94,2,FALSE)) -> 0 | F8: =IF(B8="","",IF(ISNA(IF(VLOOKUP(VLOOKUP(B8,$E$91:$G$94,3,FALSE),$D$97:$E$100,2,0)>0,"",NA())),"No display",E8*D8)) ->  | G8: =IF(ISNA(INDEX(B$8:B$12,MATCH(0,COUNTIF(G$7:$G7,B$8:B$12),0))),"",INDEX(B$8:B$12,MATCH(0,COUNTIF(G$7:$G7,B$8:B$12),0))) -> 0 | H8: =D8*E8 -> 0
E9: =IF(B9="",0,VLOOKUP(B9,$E$91:$F$94,2,FALSE)) -> 0 | F9: =IF(B9="","",IF(ISNA(IF(VLOOKUP(VLOOKUP(B9,$E$91:$G$94,3,FALSE),$D$97:$E$100,2,0)>0,"",NA())),"No display",E9*D9)) ->  | G9: =IF(ISNA(INDEX(B$8:B$12,MATCH(0,COUNTIF(G$7:$G8,B$8:B$12),0))),"",INDEX(B$8:B$12,MATCH(0,COUNTIF(G$7:$G8,B$8:B$12),0))) ->  | H9: =D9*E9 -> 0 | I9: =IF(ISNA(INDEX(G$8:G$12,MATCH(0,COUNTIF(I$7:$I8,G$8:G$12),0))),"",INDEX(G$8:G$12,MATCH(0,COUNTIF(I$7:$I8,G$8:G$12),0))) -> 0
E10: =IF(B10="",0,VLOOKUP(B10,$E$91:$F$94,2,FALSE)) -> 0 | F10: =IF(B10="","",IF(ISNA(IF(VLOOKUP(VLOOKUP(B10,$E$91:$G$94,3,FALSE),$D$97:$E$100,2,0)>0,"",NA())),"No display",E10*D10)) ->  | G10: =IF(ISNA(INDEX(B$8:B$12,MATCH(0,COUNTIF(G$7:$G9,B$8:B$12),0))),"",INDEX(B$8:B$12,MATCH(0,COUNTIF(G$7:$G9,B$8:B$12),0))) ->  | H10: =D10*E10 -> 0 | I10: =IF(ISNA(INDEX(G$8:G$12,MATCH(0,COUNTIF(I$7:$I9,G$8:G$12),0))),"",INDEX(G$8:G$12,MATCH(0,COUNTIF(I$7:$I9,G$8:G$12),0))) -> 
E11: =IF(B11="",0,VLOOKUP(B11,$E$91:$F$94,2,FALSE)) -> 0 | F11: =IF(B11="","",IF(ISNA(IF(VLOOKUP(VLOOKUP(B11,$E$91:$G$94,3,FALSE),$D$97:$E$100,2,0)>0,"",NA())),"No display",E11*D11)) ->  | G11: =IF(ISNA(INDEX(B$8:B$12,MATCH(0,COUNTIF(G$7:$G10,B$8:B$12),0))),"",INDEX(B$8:B$12,MATCH(0,COUNTIF(G$7:$G10,B$8:B$12),0))) ->  | H11: =D11*E11 -> 0 | I11: =IF(ISNA(INDEX(G$8:G$12,MATCH(0,COUNTIF(I$7:$I10,G$8:G$12),0))),"",INDEX(G$8:G$12,MATCH(0,COUNTIF(I$7:$I10,G$8:G$12),0))) -> 
C13: Total Retail With Display Area | D13: =SUM(D8:D12) -> 0 | E13: Total Watts | F13: =IF(SUM(F8:F12)>0,SUM(F8:F12),0) -> 0
E15: Retail Display Lighting Base Allowance | F15: =IF(SUM(F8:F12)>0,500,0) -> 0
E17: Maximum Retail Display Allowance NOTE 3 | F17: =IF(D13=0,0,IF(NOT(ISERROR(FIND("ERROR",B18))),NA(),F13+F15)) -> 0
B18: =IF(D13>0, IF(RetailAreas=0,"ERROR - Sales area required in LTG-INT-SPACE for Retail Sales Display Allowance",IF(RetailAreaSF<'LTG-INT-DISPLAY'!D13,"ERROR - Retail sales display area exceeds total Sales area entered in LTG-INT-SPACE","")),"") -> 
A19: Proposed Retail Display Lighting Wattage NOTE 4
A20: Retail Area | B20: Location (plan #, room #) | C20: Fixture Description NOTE 5 | D20: Number of Fixtures | E20: Watts per Fixture NOTE 6 | F20: Watts Proposed
F21: =IF(AND(A21="",D21=0,E21=0),0,IF(ISNA(IF(VLOOKUP(VLOOKUP($A21,$D$91:$E$94,2,FALSE),$B$8:$F$12,3,FALSE)>0,"",NA())),"Not Defined",D21*E21)) -> 0
F22: 0
F23: 0
F24: 0
F25: 0
F26: 0
F27: 0
F28: 0
F29: 0
F30: 0
F31: 0
E33: Total Retail Proposed Display Watts NOTE 7 | F33: =IF(COUNTIF(F21:F31,"Not Defined")>0,NA(),SUM(F21:F32)) -> 0
A35: =IF(F33>0,IF(F33<=F17,"RETAIL DISPLAY WATTAGE ALLOWANCE - AS PROPOSED","RETAIL DISPLAY WATTAGE ALLOWANCE - PER LPA"),"") ->  | E35: Retail Display Power Allowance NOTE 8 | F35: =MIN(F33,F17) -> 0
D37: Retail 2 | E37: Retail 3 | F37: Retail 4
C38: =SUMIF($A21:$A32,"Retail 1",$F21:$F32) -> 0 | D38: =SUMIF($A21:$A32,"Retail 2",$F21:$F32) -> 0 | E38: =SUMIF($A21:$A32,"Retail 3",$F21:$F32) -> 0 | F38: =SUMIF($A21:$A32,"Retail 4",$F21:$F32) -> 0
A49: Interior Display Lighting - Space-by-Space | F49: LTG-INT-DISPLAY
A50: =A2 -> 2015 Washington State Energy Code Compliance Forms for Commercial Buildings including R2, R3, R4 over 3 stories and all R1 | F50: Revised July 2016
A51: =A3 -> Project Title: | B51: =B3 -> Fill this line out on LGT-SUM | E51: Date | F51: =F3 -> 2016-07-01
E52: For Building Department Use
A55: =IF(A6="Maximum Allowed Retail Display Lighting Wattage","Maximum Allowed Lobby Art/Exhibit Display Lighting Wattage",A6) -> Maximum Allowed Lobby Art/Exhibit Display Lighting Wattage
A56: Lobby Area NOTE 9 | B56: Lobby Description including (plan # & room #) | D56: Gross Interior Area in ft2 | E56: Maximum Display Watts Allowed Per Area NOTE 10 | F56: Proposed Display Lighting Total Per Area NOTE 11 | H56: Allowance min (max, display)
E57: =IF(A57="",0,ROUNDUP(0.5*D57,0)) -> 0 | F57: =IF(A56="",0,ROUND(SUMIF($A$68:$A$81,A57,$F$68:$F$81),0)) -> 0 | G57: =IF(ISNA(INDEX(A$57:A$61,MATCH(0,COUNTIF(G$56:$G56,A$57:A$61),0))),"",INDEX(A$57:A$61,MATCH(0,COUNTIF(G$56:$G56,A$57:A$61),0))) -> 0 | H57: =MIN(E57,F57) -> 0 | I57: 0
E58: =IF(A58="",0,ROUNDUP(0.5*D58,0)) -> 0 | F58: =IF(A57="",0,ROUND(SUMIF($A$68:$A$81,A58,$F$68:$F$81),0)) -> 0 | G58: =IF(ISNA(INDEX(A$57:A$61,MATCH(0,COUNTIF(G$56:$G57,A$57:A$61),0))),"",INDEX(A$57:A$61,MATCH(0,COUNTIF(G$56:$G57,A$57:A$61),0))) ->  | H58: =MIN(E58,F58) -> 0
E59: 0 | F59: 0 | G59: =IF(ISNA(INDEX(A$57:A$61,MATCH(0,COUNTIF(G$56:$G58,A$57:A$61),0))),"",INDEX(A$57:A$61,MATCH(0,COUNTIF(G$56:$G58,A$57:A$61),0))) ->  | H59: =MIN(E59,F59) -> 0
D60: 0 | E60: 0 | F60: 0 | G60: =IF(ISNA(INDEX(A$57:A$61,MATCH(0,COUNTIF(G$56:$G59,A$57:A$61),0))),"",INDEX(A$57:A$61,MATCH(0,COUNTIF(G$56:$G59,A$57:A$61),0))) ->  | H60: =MIN(E60,F60) -> 0
C62: Total Lobby with Display Area | D62: =SUM(D57:D61) -> 0
E64: Total Lobby Art/Exhibit Display Allowance NOTE 13 | F64: =IF(OR(COUNTIF(F68:F81,"Not Defined")>0,NOT(ISERROR(FIND("ERROR",B65)))),NA(),SUM(H57:H61)) -> 0
B65: =IF(D62>0, IF(LobbyAreas=0,"ERROR - Lobby area required in LTG-INT-SPACE for Art/Exhibit Display Allowance",IF(LobbyAreaSF<'LTG-INT-DISPLAY'!D62,"ERROR - Lobby display area exceeds total Lobby area entered in LTG-INT-SPACE","")),"") -> 
A66: Proposed Lobby Art/Exhibit Display Lighting Wattage NOTE 12
A67: Lobby Area | B67: Location (plan #, room #) | C67: Fixture Description NOTE 5 | D67: Number of Fixtures | E67: Watts per Fixture NOTE 6 | F67: Watts Proposed
F68: =IF(AND(A68="",D68=0,E68=0),0,IF(ISNA(VLOOKUP(A68,$A$57:$F$61,1,FALSE)),"Not Defined",IF(VLOOKUP(A68,$A$57:$F$61,4,FALSE)>0,D68*E68,"Not Defined"))) -> 0
F69: 0
F70: 0
F71: 0
F72: 0
F73: 0
F74: 0
F75: 0
F76: 0
F77: 0
F78: 0
F79: 0
F80: 0
E82: Total Lobby Art/Exhibit Proposed Display Watts | F82: =IF(COUNTIF(F68:F81,"Not Defined")>0,NA(),SUM(F68:F81)) -> 0
A84: Interior Lighting Power Allowance | F84: =IF(ISNA(F82),NA(),IF(AND(F82=0,F64=0), "",IF(F64<F82,"DOES NOT COMPLY: "&sardines(H57:H61),"COMPLIES"))) -> 
F87: =COUNTIF(E57:E61,""<F57) -> 0
E90: Space-by-Space areas
D91: Retail 1 | E91: Retail 1: All unclassified retail display | F91: 0.6 | G91: =D91 -> Retail 1
D92: Retail 2 | E92: Retail 2: Vehicles, sporting goods and small electronics | F92: 0.6 | G92: =D92 -> Retail 2
D93: Retail 3 | E93: Retail 3: Furniture, clothing, cosmetics, artwork | F93: 1.4 | G93: =D93 -> Retail 3
D94: Retail 4 | E94: Retail 4: Jewelry, crystal, china | F94: 2.5 | G94: =D94 -> Retail 4
D96: Area Used | E96: Installed Watts
D97: =IF(LEN(G8)>1,VLOOKUP(G8,$E$91:$G$94,3,0),"") ->  | E97: =IF(D97="","",SUMIF(DisplayProposed,D97,$F$21:$F$32)) -> 
E98: =IF(D98="","",SUMIF(DisplayProposed,D98,$F$21:$F$32)) -> 
E99: =IF(D99="","",SUMIF(DisplayProposed,D99,$F$21:$F$32)) -> 
E100: =IF(D100="","",SUMIF(DisplayProposed,D100,$F$21:$F$32)) -> 

Sheet LTG-INT-BLD
A1: Interior Lighting - Building Area Method | F1: LTG-INT-BLD
A2: ='LTG-SUM'!A2 -> 2015 Washington State Energy Code Compliance Forms for Commercial Buildings including R2, R3, R4 over 3 stories and all R1 | F2: ='LTG-SUM'!G2 -> Revised August 2016
A3: ='LTG-SUM'!B3 -> Project Title: | B3: =IF('LTG-SUM'!C3="1 - This title will copy onto other forms","Fill this line out on LGT-SUM",'LTG-SUM'!C3) -> Fill this line out on LGT-SUM | E3: ='LTG-SUM'!F3 -> Date | F3: ='LTG-SUM'!G3 -> 2016-07-01
A4: Calculation Area NOTE 8 | E4: ='LTG-SUM'!F4 -> For Building Department Use
A7: LPA Calculation Type
A9: =IF(IntAlt_LT50pctBA,"Use Space-by-space for less than 50% lighting retrofit","Maximum Allowed Lighting Wattage") -> Maximum Allowed Lighting Wattage
A10: Building Area | B10: Location (plan #, room #, or ALL) | C10: Area Description | D10: Gross Interior Area in ft2 | E10: Allowed Watts per ft2 | F10: Watts Allowed (watts/ft2 x area)
E11: =IF(A11="",0,VLOOKUP(A11,$A$63:$B$94,2,FALSE)) -> 0 | F11: =IF(AND(A11="",E11=0,D11=0),0,IF(ISNA(IF(VLOOKUP(A11,$A$22:$F$33,6,FALSE)>0,"",NA())),"Unlit",ROUNDUP(E11*D11,0))) -> 0 | G11: =IF(ISNA(INDEX(A$11:A$18,MATCH(0,COUNTIF(G$10:$G10,A$11:A$18),0))),"",INDEX(A$11:A$18,MATCH(0,COUNTIF(G$10:$G10,A$11:A$18),0))) -> 0
E12: 0 | F12: =IF(AND(A12="",E12=0,D12=0),0,IF(ISNA(IF(VLOOKUP(A12,$A$22:$F$33,6,FALSE)>0,"",NA())),"Unlit",ROUNDUP(E12*D12,0))) -> 0 | G12: =IF(ISNA(INDEX(A$11:A$18,MATCH(0,COUNTIF(G$10:$G11,A$11:A$18),0))),"",INDEX(A$11:A$18,MATCH(0,COUNTIF(G$10:$G11,A$11:A$18),0))) -> 
E13: 0 | F13: 0 | G13: =IF(ISNA(INDEX(A$11:A$18,MATCH(0,COUNTIF(G$10:$G12,A$11:A$18),0))),"",INDEX(A$11:A$18,MATCH(0,COUNTIF(G$10:$G12,A$11:A$18),0))) -> 
E14: 0 | F14: 0 | G14: =IF(ISNA(INDEX(A$11:A$18,MATCH(0,COUNTIF(G$10:$G13,A$11:A$18),0))),"",INDEX(A$11:A$18,MATCH(0,COUNTIF(G$10:$G13,A$11:A$18),0))) ->  | K14: 1
E15: 0 | F15: 0 | G15: =IF(ISNA(INDEX(A$11:A$18,MATCH(0,COUNTIF(G$10:$G14,A$11:A$18),0))),"",INDEX(A$11:A$18,MATCH(0,COUNTIF(G$10:$G14,A$11:A$18),0))) ->  | K15: 1
E16: 0 | F16: 0 | G16: =IF(ISNA(INDEX(A$11:A$18,MATCH(0,COUNTIF(G$10:$G15,A$11:A$18),0))),"",INDEX(A$11:A$18,MATCH(0,COUNTIF(G$10:$G15,A$11:A$18),0))) ->  | K16: 1
E17: =IF(A17="",0,VLOOKUP(A17,$A$63:$B$94,2,FALSE)) -> 0 | F17: 0 | G17: =IF(ISNA(INDEX(A$11:A$18,MATCH(0,COUNTIF(G$10:$G16,A$11:A$18),0))),"",INDEX(A$11:A$18,MATCH(0,COUNTIF(G$10:$G16,A$11:A$18),0))) ->  | K17: 1
C19: Total | D19: =SUM(D11:D18) -> 0
A20: Proposed Lighting Wattage
A21: Building Area | B21: Location (plan #, room #) | C21: Fixture Description NOTE 2, 3, 4, 5 | D21: Number of Fixtures | E21: Watts per Fixture NOTE 6 | F21: Watts Proposed
F22: =IF(AND(A22="",D22=0,E22=0),0,IF(ISNA(IF(VLOOKUP(A22,$A$11:$F$18,4,FALSE)>0,"",NA())),txt_Area_Not_Defined,ROUND(D22*E22,0))) -> 0
F23: 0
F24: 0
F25: 0
F26: 0
F27: 0
F28: 0
F29: 0
F30: 0
F31: 0
F32: 0
G33: =COUNTIFS(F22:F33,"Not Defined",A22:A33,"") -> 0
A34: Compliance by Building Area NOTE 7 | G34: =COUNTIF(F22:F33,">0") -> 0
A35: Building Area | B35: Warnings | D35: Total Allowed Watts | E35: Total Proposed Watts | F35: Interior Lighting Power Allowance | G35: =UniqueAreas -> 0
A36: =IF('LTG-INT-REF'!H16=0,"",'LTG-INT-REF'!H16) ->  | B36: =IF(AND(A36<>"",'LTG-INT-REF'!N16>0),"Building Area information is incomplete",IF('LTG-INT-REF'!P16=1,"Confirm all fixtures are reported under proposed lighting - low watts relative to maximum allowed.",IF('LTG-INT-REF'!L16=0,"","Exceeds maximum allowed wattage for this building area"))) ->  | D36: =IF(A36="","",SUMIF(AreasInBld,A36,$F$11:$F$18)) ->  | E36: =IF('LTG-INT-REF'!H16=0,"",'LTG-INT-REF'!J16) ->  | F36: =IF(A36<>"",IF('LTG-INT-REF'!O16=0,IF(intCalcScopeBAset,IF(CalcTypeBAset,IF(OR('LTG-INT-REF'!L16=1,'LTG-INT-REF'!N16=1),"DOES NOT COMPLY",IF(CalcTypeBA=2, IF('LTG-INT-REF'!M16=1,"DOES NOT COMPLY C406.3","COMPLIES C406.3"), "COMPLIES")),"Set LPA Calculation Type"),"Set Calculation Area"),"UNLIT"),"") ->  | G36: =ROWS(IntBldCompTablePlus1) -> 4
A37: =IF('LTG-INT-REF'!H17=0,"",'LTG-INT-REF'!H17) ->  | B37: =IF(AND(A37<>"",'LTG-INT-REF'!N17>0),"Building Area information is incomplete",IF('LTG-INT-REF'!P17=1,"Confirm all fixtures are reported under proposed lighting - low watts relative to maximum allowed.",IF('LTG-INT-REF'!L17=0,"","Exceeds maximum allowed wattage for this building area"))) ->  | D37: =IF(A37="","",SUMIF(AreasInBld,A37,$F$11:$F$18)) ->  | E37: =IF('LTG-INT-REF'!H17=0,"",'LTG-INT-REF'!J17) ->  | F37: =IF(A37<>"",IF('LTG-INT-REF'!O17=0,IF(intCalcScopeBAset,IF(CalcTypeBAset,IF(OR('LTG-INT-REF'!L17=1,'LTG-INT-REF'!N17=1),"DOES NOT COMPLY",IF(CalcTypeBA=2, IF('LTG-INT-REF'!M17=1,"DOES NOT COMPLY C406.3","COMPLIES C406.3"), "COMPLIES")),"Set LPA Calculation Type"),"Set Calculation Area"),"UNLIT"),"") -> 
A38: =IF('LTG-INT-REF'!H18=0,"",'LTG-INT-REF'!H18) ->  | B38: =IF(AND(A38<>"",'LTG-INT-REF'!N18>0),"Building Area information is incomplete",IF('LTG-INT-REF'!P18=1,"Confirm all fixtures are reported under proposed lighting - low watts relative to maximum allowed.",IF('LTG-INT-REF'!L18=0,"","Exceeds maximum allowed wattage for this building area"))) ->  | D38: =IF(A38="","",SUMIF(AreasInBld,A38,$F$11:$F$18)) ->  | E38: =IF('LTG-INT-REF'!H18=0,"",'LTG-INT-REF'!J18) ->  | F38: =IF(A38<>"",IF('LTG-INT-REF'!O18=0,IF(intCalcScopeBAset,IF(CalcTypeBAset,IF(OR('LTG-INT-REF'!L18=1,'LTG-INT-REF'!N18=1),"DOES NOT COMPLY",IF(CalcTypeBA=2, IF('LTG-INT-REF'!M18=1,"DOES NOT COMPLY C406.3","COMPLIES C406.3"), "COMPLIES")),"Set LPA Calculation Type"),"Set Calculation Area"),"UNLIT"),"") -> 
F39: =IF(AND(G33>0,G34>0),"ERROR - Unassigned Proposed Fixture","") ->  | J39: 0
C40: Totals | D40: =SUM(D36:D39) -> 0 | E40: =SUM(E36:E39) -> 0
A62: Building Areas
A63: ='LTG-INT-REF'!A19 -> Automotive facility | B63: ='LTG-INT-REF'!C19 -> 0.64
A64: ='LTG-INT-REF'!A20 -> Convention center | B64: ='LTG-INT-REF'!C20 -> 0.81
A65: ='LTG-INT-REF'!A21 -> Court house | B65: ='LTG-INT-REF'!C21 -> 0.81
A66: ='LTG-INT-REF'!A22 -> Dining: Bar lounge/leisure | B66: ='LTG-INT-REF'!C22 -> 0.79
A67: ='LTG-INT-REF'!A23 -> Dining: Cafeteria/fast food | B67: ='LTG-INT-REF'!C23 -> 0.72
A68: ='LTG-INT-REF'!A24 -> Dining: Family | B68: ='LTG-INT-REF'!C24 -> 0.71
A69: ='LTG-INT-REF'!A25 -> Dormitory | B69: ='LTG-INT-REF'!C25 -> 0.46
A70: ='LTG-INT-REF'!A26 -> Exercise center | B70: ='LTG-INT-REF'!C26 -> 0.67
A71: ='LTG-INT-REF'!A27 -> Fire station | B71: ='LTG-INT-REF'!C27 -> 0.54
A72: ='LTG-INT-REF'!A28 -> Gymnasium | B72: ='LTG-INT-REF'!C28 -> 0.75
A73: ='LTG-INT-REF'!A29 -> Health care clinic | B73: ='LTG-INT-REF'!C29 -> 0.7
A74: ='LTG-INT-REF'!A30 -> Hospital | B74: ='LTG-INT-REF'!C30 -> 0.84
A75: Hotel | B75: ='LTG-INT-REF'!C31 -> 0.7
A76: ='LTG-INT-REF'!A32 -> Library | B76: ='LTG-INT-REF'!C32 -> 0.94
A77: ='LTG-INT-REF'!A33 -> Manufacturing facility | B77: ='LTG-INT-REF'!C33 -> 0.89
A78: ='LTG-INT-REF'!A34 -> Motion picture theater | B78: ='LTG-INT-REF'!C34 -> 0.61
A79: ='LTG-INT-REF'!A35 -> Multifamily | B79: ='LTG-INT-REF'!C35 -> 0.41
A80: ='LTG-INT-REF'!A36 -> Museum | B80: ='LTG-INT-REF'!C36 -> 0.8
A81: ='LTG-INT-REF'!A37 -> Office | B81: ='LTG-INT-REF'!C37 -> 0.66
A82: ='LTG-INT-REF'!A38 -> Parking garage | B82: ='LTG-INT-REF'!C38 -> 0.16
A83: ='LTG-INT-REF'!A39 -> Penitentiary | B83: ='LTG-INT-REF'!C39 -> 0.65
A84: ='LTG-INT-REF'!A40 -> Performing arts theater | B84: ='LTG-INT-REF'!C40 -> 1
A85: ='LTG-INT-REF'!A41 -> Police station | B85: ='LTG-INT-REF'!C41 -> 0.7
A86: ='LTG-INT-REF'!A42 -> Post office | B86: ='LTG-INT-REF'!C42 -> 0.7
A87: ='LTG-INT-REF'!A43 -> Religious building | B87: ='LTG-INT-REF'!C43 -> 0.8
A88: ='LTG-INT-REF'!A44 -> Retail | B88: ='LTG-INT-REF'!C44 -> 1.01
A89: ='LTG-INT-REF'!A45 -> School/university | B89: ='LTG-INT-REF'!C45 -> 0.7
A90: ='LTG-INT-REF'!A46 -> Sports arena | B90: ='LTG-INT-REF'!C46 -> 0.62
A91: ='LTG-INT-REF'!A47 -> Town hall | B91: ='LTG-INT-REF'!C47 -> 0.71
A92: ='LTG-INT-REF'!A48 -> Transportation | B92: ='LTG-INT-REF'!C48 -> 0.56
A93: ='LTG-INT-REF'!A49 -> Warehouse | B93: ='LTG-INT-REF'!C49 -> 0.4
A94: ='LTG-INT-REF'!A50 -> Workshop | B94: ='LTG-INT-REF'!C50 -> 0.95

Sheet LTG-INT-REF (hidden)
A1: Method
A2: 2 | B2: NO Longer used 2015 (1=building area, 2=space-by-space, 3=not specified
A3: Calculation Scope (area calculation is for) | C3: intCalcScopeSet
A4: 0 | B4: =IF(IntCalculationScopeSBS=1,TRUE,FALSE) -> FALSE | C4: =IntCalculationScopeSBS<>5 -> TRUE
A5: 5 | B5: =IF(intCalculationScopeBA=1,TRUE,FALSE) -> FALSE | C5: =intCalculationScopeBA<>5 -> FALSE
A6: Calculation Type | C6: CalcTypeSet
A7: 3 | B7: C406.4 Reduced Lighting Power=2 | C7: =CalcTypeSBS<>3 -> FALSE
A8: 3 | B8: C406.4 Reduced Lighting Power=2 | C8: =CalcTypeBA<>3 -> FALSE | J8: =SUMPRODUCT('LTG-INT-BLD'!D22:D32,'LTG-INT-BLD'!E22:E32) -> 0 | K8: watts entered
A9: Dwelling Method | J9: =SUM(J16:J35) -> 0 | K9: watts in allowed catagories
A10: 4 | B10: Not used in calculations 6/2016 | H10: Number of Unique Areas
A11: Pass | H11: =21-COUNTIF(G16:G35,NA())-1 -> 0 | N11: Text denoting areas not defined (used here and on LTG-INT-BLD
A12: =SUM(L16:L35)=0 -> TRUE | B12: =IF(A12=FALSE,MID(E12,1,LEN(E12)-2),IF(SUM(J16:J50)>0,IF(J8=J9,"ALL AREAS COMPLY","PROPOSED LIGHTING IN UNDEFINED SPACE TYPE"),"")) ->  | E12: =IF(A12=FALSE,"The following areas do not comply: ","") ->  | I12: =IF(J12="",,IF(MID(J12,LEN(J12)-1,2)=", ",MID(J12,1,LEN(J12)-2),J12)) -> 0 | J12: =IF(A12=FALSE,CONCATENATE(Q16,Q17,Q18,Q19,Q20,Q21,Q22,Q23,Q24,Q25,Q26,Q27,Q28,Q29,Q30,Q31,Q32,Q33,#REF!,Q34,Q35),"") ->  | N12: Not Defined
A13: Low LPD | H13: Specified Building Areas
A14: =SUM(P16:P35)>0 -> FALSE | B14: =IF(A14=TRUE,"Areas with low LPD's. Check that all proposed fixtures are entered:","") ->  | E14: =IF(A14=TRUE,CONCATENATE(R16,R17,R18,R19,R20,R21,R22,R23,R24,R25,R26,R27,R28,R29,R30,R31,R32,R33,R34,R35),"") ->  | I14: Watts | N14: Area
B15: =IF(A14=TRUE,MID(E14,1,LEN(E14)-2),"") ->  | I15: allowed | J15: proposed | K15: Over | L15: Fail | M15: Fail C406.4 | N15: Undefined | O15: No lights | P15: low LPD | Q15: watts error | R15: lowLPD error
E16: =INDEX(AreasInBld,MATCH(0,COUNTIF(E$15:$E15,AreasInBld),0)) -> 0 | F16: =IF(ISTEXT(E16),E16,"") ->  | G16: =INDEX($F$16:$F$82,MATCH(0,COUNTIF(G$15:$G15,$F$16:$F$82),0)) ->  | H16: =IF(ISTEXT(G16),G16,0) -> 0 | I16: =IF(H16=0,0,SUMIF('LTG-INT-BLD'!$A$11:$A$18,'LTG-INT-REF'!H16,'LTG-INT-BLD'!$F$11:$F$18)) -> 0 | J16: =IF(H16=0,0,SUMIF('LTG-INT-BLD'!$A$22:$A$33,'LTG-INT-REF'!H16,'LTG-INT-BLD'!$F$22:$F$33)) -> 0 | K16: =IF(J16>I16,J16-I16,"") ->  | L16: =IF(I16<J16,1,0) -> 0 | M16: =IF(I16*0.75<J16,1,0) -> 0 | N16: =IF(COUNTIFS('LTG-INT-BLD'!$A$22:$A$33,'LTG-INT-REF'!H16,'LTG-INT-BLD'!$F$22:$F$33,txt_Area_Not_Defined)>0,1,0) -> 0 | O16: =IF(AND(J16=0,N16=0),1,0) -> 1 | P16: =IF(OR(H16=0,N16<>0),0,IF(OR(J16<I16*0.6,J16=0),1,0)) -> 0 | Q16: =IF(L16=1,CONCATENATE(H16,"-",K16,"W over, "),"") ->  | R16: =IF(P16=1,CONCATENATE(H16,", "),"") -> 
B17: Allowance | E17: =INDEX(AreasInBld,MATCH(0,COUNTIF(E$15:$E16,AreasInBld),0)) ->  | F17: =IF(ISTEXT(E17),E17,"") ->  | G17: =INDEX($F$16:$F$82,MATCH(0,COUNTIF(G$15:$G16,$F$16:$F$82),0)) ->  | H17: =IF(ISTEXT(G17),G17,0) -> 0 | I17: =IF(H17=0,0,SUMIF('LTG-INT-BLD'!$A$11:$A$18,'LTG-INT-REF'!H17,'LTG-INT-BLD'!$F$11:$F$18)) -> 0 | J17: =IF(H17=0,0,SUMIF('LTG-INT-BLD'!$A$22:$A$33,'LTG-INT-REF'!H17,'LTG-INT-BLD'!$F$22:$F$33)) -> 0 | K17: =IF(J17>I17,J17-I17,"") ->  | L17: =IF(I17<J17,1,0) -> 0 | M17: =IF(I17*0.75<J17,1,0) -> 0 | N17: =IF(COUNTIFS('LTG-INT-BLD'!$A$22:$A$33,'LTG-INT-REF'!H17,'LTG-INT-BLD'!$F$22:$F$33,txt_Area_Not_Defined)>0,1,0) -> 0 | O17: 1 | P17: =IF(OR(H17=0,N17<>0),0,IF(OR(J17<I17*0.6,J17=0),1,0)) -> 0
A18: Building Areas | B18: text | C18: W | E18: =INDEX(AreasInBld,MATCH(0,COUNTIF(E$15:$E17,AreasInBld),0)) ->  | G18: =INDEX($F$16:$F$82,MATCH(0,COUNTIF(G$15:$G17,$F$16:$F$82),0)) ->  | H18: 0 | I18: =IF(H18=0,0,SUMIF('LTG-INT-BLD'!$A$11:$A$18,'LTG-INT-REF'!H18,'LTG-INT-BLD'!$F$11:$F$18)) -> 0 | J18: =IF(H18=0,0,SUMIF('LTG-INT-BLD'!$A$22:$A$33,'LTG-INT-REF'!H18,'LTG-INT-BLD'!$F$22:$F$33)) -> 0 | L18: 0 | M18: 0 | N18: =IF(COUNTIFS('LTG-INT-BLD'!$A$22:$A$33,'LTG-INT-REF'!H18,'LTG-INT-BLD'!$F$22:$F$33,txt_Area_Not_Defined)>0,1,0) -> 0 | O18: 1 | P18: 0
A19: Automotive facility | B19: =CONCATENATE(TEXT(C19,"0.0#")," W/ft2") -> 0.64 W/ft2 | C19: 0.64 | E19: =INDEX(AreasInBld,MATCH(0,COUNTIF(E$15:$E18,AreasInBld),0)) ->  | G19: =INDEX($F$16:$F$82,MATCH(0,COUNTIF(G$15:$G18,$F$16:$F$82),0)) ->  | H19: 0 | I19: =IF(H19=0,0,SUMIF('LTG-INT-BLD'!$A$11:$A$18,'LTG-INT-REF'!H19,'LTG-INT-BLD'!$F$11:$F$18)) -> 0 | J19: =IF(H19=0,0,SUMIF('LTG-INT-BLD'!$A$22:$A$33,'LTG-INT-REF'!H19,'LTG-INT-BLD'!$F$22:$F$33)) -> 0 | L19: 0 | M19: 0 | N19: =IF(COUNTIFS('LTG-INT-BLD'!$A$22:$A$33,'LTG-INT-REF'!H19,'LTG-INT-BLD'!$F$22:$F$33,txt_Area_Not_Defined)>0,1,0) -> 0 | O19: 1 | P19: 0
A20: Convention center | B20: =CONCATENATE(TEXT(C20,"0.0#")," W/ft2") -> 0.81 W/ft2 | C20: 0.81 | E20: =INDEX(AreasInBld,MATCH(0,COUNTIF(E$15:$E19,AreasInBld),0)) ->  | G20: =INDEX($F$16:$F$82,MATCH(0,COUNTIF(G$15:$G19,$F$16:$F$82),0)) ->  | H20: 0 | I20: =IF(H20=0,0,SUMIF('LTG-INT-BLD'!$A$11:$A$18,'LTG-INT-REF'!H20,'LTG-INT-BLD'!$F$11:$F$18)) -> 0 | J20: =IF(H20=0,0,SUMIF('LTG-INT-BLD'!$A$22:$A$33,'LTG-INT-REF'!H20,'LTG-INT-BLD'!$F$22:$F$33)) -> 0 | L20: 0 | M20: 0 | N20: =IF(COUNTIFS('LTG-INT-BLD'!$A$22:$A$33,'LTG-INT-REF'!H20,'LTG-INT-BLD'!$F$22:$F$33,txt_Area_Not_Defined)>0,1,0) -> 0 | O20: 1 | P20: 0
A21: Court house | B21: 0.81 W/ft2 | C21: 0.81 | E21: =INDEX(AreasInBld,MATCH(0,COUNTIF(E$15:$E20,AreasInBld),0)) ->  | G21: =INDEX($F$16:$F$82,MATCH(0,COUNTIF(G$15:$G20,$F$16:$F$82),0)) ->  | H21: 0 | I21: =IF(H21=0,0,SUMIF('LTG-INT-BLD'!$A$11:$A$18,'LTG-INT-REF'!H21,'LTG-INT-BLD'!$F$11:$F$18)) -> 0 | J21: =IF(H21=0,0,SUMIF('LTG-INT-BLD'!$A$22:$A$33,'LTG-INT-REF'!H21,'LTG-INT-BLD'!$F$22:$F$33)) -> 0 | L21: 0 | M21: 0 | N21: =IF(COUNTIFS('LTG-INT-BLD'!$A$22:$A$33,'LTG-INT-REF'!H21,'LTG-INT-BLD'!$F$22:$F$33,txt_Area_Not_Defined)>0,1,0) -> 0 | O21: 1 | P21: 0
A22: Dining: Bar lounge/leisure | B22: 0.79 W/ft2 | C22: 0.79 | E22: =INDEX(AreasInBld,MATCH(0,COUNTIF(E$15:$E21,AreasInBld),0)) ->  | G22: =INDEX($F$16:$F$82,MATCH(0,COUNTIF(G$15:$G21,$F$16:$F$82),0)) ->  | H22: 0 | I22: =IF(H22=0,0,SUMIF('LTG-INT-BLD'!$A$11:$A$18,'LTG-INT-REF'!H22,'LTG-INT-BLD'!$F$11:$F$18)) -> 0 | J22: =IF(H22=0,0,SUMIF('LTG-INT-BLD'!$A$22:$A$33,'LTG-INT-REF'!H22,'LTG-INT-BLD'!$F$22:$F$33)) -> 0 | L22: 0 | M22: 0 | N22: =IF(COUNTIFS('LTG-INT-BLD'!$A$22:$A$33,'LTG-INT-REF'!H22,'LTG-INT-BLD'!$F$22:$F$33,txt_Area_Not_Defined)>0,1,0) -> 0 | O22: 1 | P22: 0
A23: Dining: Cafeteria/fast food | B23: 0.72 W/ft2 | C23: 0.72 | E23: =INDEX(AreasInBld,MATCH(0,COUNTIF(E$15:$E22,AreasInBld),0)) ->  | G23: =INDEX($F$16:$F$82,MATCH(0,COUNTIF(G$15:$G22,$F$16:$F$82),0)) ->  | H23: 0 | I23: =IF(H23=0,0,SUMIF('LTG-INT-BLD'!$A$11:$A$18,'LTG-INT-REF'!H23,'LTG-INT-BLD'!$F$11:$F$18)) -> 0 | J23: =IF(H23=0,0,SUMIF('LTG-INT-BLD'!$A$22:$A$33,'LTG-INT-REF'!H23,'LTG-INT-BLD'!$F$22:$F$33)) -> 0 | L23: 0 | M23: 0 | N23: =IF(COUNTIFS('LTG-INT-BLD'!$A$22:$A$33,'LTG-INT-REF'!H23,'LTG-INT-BLD'!$F$22:$F$33,txt_Area_Not_Defined)>0,1,0) -> 0 | O23: 1 | P23: 0
A24: Dining: Family | B24: 0.71 W/ft2 | C24: 0.71 | E24: =INDEX(AreasInBld,MATCH(0,COUNTIF(E$15:$E23,AreasInBld),0)) ->  | G24: =INDEX($F$16:$F$82,MATCH(0,COUNTIF(G$15:$G23,$F$16:$F$82),0)) ->  | H24: 0 | I24: =IF(H24=0,0,SUMIF('LTG-INT-BLD'!$A$11:$A$18,'LTG-INT-REF'!H24,'LTG-INT-BLD'!$F$11:$F$18)) -> 0 | J24: =IF(H24=0,0,SUMIF('LTG-INT-BLD'!$A$22:$A$33,'LTG-INT-REF'!H24,'LTG-INT-BLD'!$F$22:$F$33)) -> 0 | L24: 0 | M24: 0 | N24: =IF(COUNTIFS('LTG-INT-BLD'!$A$22:$A$33,'LTG-INT-REF'!H24,'LTG-INT-BLD'!$F$22:$F$33,txt_Area_Not_Defined)>0,1,0) -> 0 | O24: 1 | P24: 0
A25: Dormitory | B25: 0.46 W/ft2 | C25: 0.46 | E25: =INDEX(AreasInBld,MATCH(0,COUNTIF(E$15:$E24,AreasInBld),0)) ->  | G25: =INDEX($F$16:$F$82,MATCH(0,COUNTIF(G$15:$G24,$F$16:$F$82),0)) ->  | H25: 0 | I25: =IF(H25=0,0,SUMIF('LTG-INT-BLD'!$A$11:$A$18,'LTG-INT-REF'!H25,'LTG-INT-BLD'!$F$11:$F$18)) -> 0 | J25: =IF(H25=0,0,SUMIF('LTG-INT-BLD'!$A$22:$A$33,'LTG-INT-REF'!H25,'LTG-INT-BLD'!$F$22:$F$33)) -> 0 | L25: 0 | M25: 0 | N25: =IF(COUNTIFS('LTG-INT-BLD'!$A$22:$A$33,'LTG-INT-REF'!H25,'LTG-INT-BLD'!$F$22:$F$33,txt_Area_Not_Defined)>0,1,0) -> 0 | O25: 1 | P25: 0
A26: Exercise center | B26: 0.67 W/ft2 | C26: 0.67 | E26: =INDEX(AreasInBld,MATCH(0,COUNTIF(E$15:$E25,AreasInBld),0)) ->  | G26: =INDEX($F$16:$F$82,MATCH(0,COUNTIF(G$15:$G25,$F$16:$F$82),0)) ->  | H26: 0 | I26: =IF(H26=0,0,SUMIF('LTG-INT-BLD'!$A$11:$A$18,'LTG-INT-REF'!H26,'LTG-INT-BLD'!$F$11:$F$18)) -> 0 | J26: =IF(H26=0,0,SUMIF('LTG-INT-BLD'!$A$22:$A$33,'LTG-INT-REF'!H26,'LTG-INT-BLD'!$F$22:$F$33)) -> 0 | L26: 0 | M26: 0 | N26: =IF(COUNTIFS('LTG-INT-BLD'!$A$22:$A$33,'LTG-INT-REF'!H26,'LTG-INT-BLD'!$F$22:$F$33,txt_Area_Not_Defined)>0,1,0) -> 0 | O26: 1 | P26: 0
A27: Fire station | B27: 0.54 W/ft2 | C27: 0.54 | E27: =INDEX(AreasInBld,MATCH(0,COUNTIF(E$15:$E26,AreasInBld),0)) ->  | G27: =INDEX($F$16:$F$82,MATCH(0,COUNTIF(G$15:$G26,$F$16:$F$82),0)) ->  | H27: 0 | I27: =IF(H27=0,0,SUMIF('LTG-INT-BLD'!$A$11:$A$18,'LTG-INT-REF'!H27,'LTG-INT-BLD'!$F$11:$F$18)) -> 0 | J27: =IF(H27=0,0,SUMIF('LTG-INT-BLD'!$A$22:$A$33,'LTG-INT-REF'!H27,'LTG-INT-BLD'!$F$22:$F$33)) -> 0 | L27: 0 | M27: 0 | N27: =IF(COUNTIFS('LTG-INT-BLD'!$A$22:$A$33,'LTG-INT-REF'!H27,'LTG-INT-BLD'!$F$22:$F$33,txt_Area_Not_Defined)>0,1,0) -> 0 | O27: 1 | P27: 0
A28: Gymnasium | B28: 0.75 W/ft2 | C28: 0.75 | E28: =INDEX(AreasInBld,MATCH(0,COUNTIF(E$15:$E27,AreasInBld),0)) ->  | G28: =INDEX($F$16:$F$82,MATCH(0,COUNTIF(G$15:$G27,$F$16:$F$82),0)) ->  | H28: 0 | I28: =IF(H28=0,0,SUMIF('LTG-INT-BLD'!$A$11:$A$18,'LTG-INT-REF'!H28,'LTG-INT-BLD'!$F$11:$F$18)) -> 0 | J28: =IF(H28=0,0,SUMIF('LTG-INT-BLD'!$A$22:$A$33,'LTG-INT-REF'!H28,'LTG-INT-BLD'!$F$22:$F$33)) -> 0 | L28: 0 | M28: 0 | N28: =IF(COUNTIFS('LTG-INT-BLD'!$A$22:$A$33,'LTG-INT-REF'!H28,'LTG-INT-BLD'!$F$22:$F$33,txt_Area_Not_Defined)>0,1,0) -> 0 | O28: 1 | P28: 0
A29: Health care clinic | B29: 0.7 W/ft2 | C29: 0.7 | E29: =INDEX(AreasInBld,MATCH(0,COUNTIF(E$15:$E28,AreasInBld),0)) ->  | G29: =INDEX($F$16:$F$82,MATCH(0,COUNTIF(G$15:$G28,$F$16:$F$82),0)) ->  | H29: 0 | I29: =IF(H29=0,0,SUMIF('LTG-INT-BLD'!$A$11:$A$18,'LTG-INT-REF'!H29,'LTG-INT-BLD'!$F$11:$F$18)) -> 0 | J29: =IF(H29=0,0,SUMIF('LTG-INT-BLD'!$A$22:$A$33,'LTG-INT-REF'!H29,'LTG-INT-BLD'!$F$22:$F$33)) -> 0 | L29: 0 | M29: 0 | N29: =IF(COUNTIFS('LTG-INT-BLD'!$A$22:$A$33,'LTG-INT-REF'!H29,'LTG-INT-BLD'!$F$22:$F$33,txt_Area_Not_Defined)>0,1,0) -> 0 | O29: 1 | P29: 0
A30: Hospital | B30: 0.84 W/ft2 | C30: 0.84 | E30: =INDEX(AreasInBld,MATCH(0,COUNTIF(E$15:$E29,AreasInBld),0)) ->  | G30: =INDEX($F$16:$F$82,MATCH(0,COUNTIF(G$15:$G29,$F$16:$F$82),0)) ->  | H30: 0 | I30: =IF(H30=0,0,SUMIF('LTG-INT-BLD'!$A$11:$A$18,'LTG-INT-REF'!H30,'LTG-INT-BLD'!$F$11:$F$18)) -> 0 | J30: =IF(H30=0,0,SUMIF('LTG-INT-BLD'!$A$22:$A$33,'LTG-INT-REF'!H30,'LTG-INT-BLD'!$F$22:$F$33)) -> 0 | L30: 0 | M30: 0 | N30: =IF(COUNTIFS('LTG-INT-BLD'!$A$22:$A$33,'LTG-INT-REF'!H30,'LTG-INT-BLD'!$F$22:$F$33,txt_Area_Not_Defined)>0,1,0) -> 0 | O30: 1 | P30: 0
A31: Hotel | B31: 0.7 W/ft2 | C31: 0.7 | E31: =INDEX(AreasInBld,MATCH(0,COUNTIF(E$15:$E30,AreasInBld),0)) ->  | G31: =INDEX($F$16:$F$82,MATCH(0,COUNTIF(G$15:$G30,$F$16:$F$82),0)) ->  | H31: 0 | I31: =IF(H31=0,0,SUMIF('LTG-INT-BLD'!$A$11:$A$18,'LTG-INT-REF'!H31,'LTG-INT-BLD'!$F$11:$F$18)) -> 0 | J31: =IF(H31=0,0,SUMIF('LTG-INT-BLD'!$A$22:$A$33,'LTG-INT-REF'!H31,'LTG-INT-BLD'!$F$22:$F$33)) -> 0 | L31: 0 | M31: 0 | N31: =IF(COUNTIFS('LTG-INT-BLD'!$A$22:$A$33,'LTG-INT-REF'!H31,'LTG-INT-BLD'!$F$22:$F$33,txt_Area_Not_Defined)>0,1,0) -> 0 | O31: 1 | P31: 0
A32: Library | B32: 0.94 W/ft2 | C32: 0.94 | E32: =INDEX(AreasInBld,MATCH(0,COUNTIF(E$15:$E31,AreasInBld),0)) ->  | G32: =INDEX($F$16:$F$82,MATCH(0,COUNTIF(G$15:$G31,$F$16:$F$82),0)) ->  | H32: 0 | I32: =IF(H32=0,0,SUMIF('LTG-INT-BLD'!$A$11:$A$18,'LTG-INT-REF'!H32,'LTG-INT-BLD'!$F$11:$F$18)) -> 0 | J32: =IF(H32=0,0,SUMIF('LTG-INT-BLD'!$A$22:$A$33,'LTG-INT-REF'!H32,'LTG-INT-BLD'!$F$22:$F$33)) -> 0 | L32: 0 | M32: 0 | N32: =IF(COUNTIFS('LTG-INT-BLD'!$A$22:$A$33,'LTG-INT-REF'!H32,'LTG-INT-BLD'!$F$22:$F$33,txt_Area_Not_Defined)>0,1,0) -> 0 | O32: 1 | P32: 0
A33: Manufacturing facility | B33: 0.89 W/ft2 | C33: 0.89 | E33: =INDEX(AreasInBld,MATCH(0,COUNTIF(E$15:$E32,AreasInBld),0)) ->  | G33: =INDEX($F$16:$F$82,MATCH(0,COUNTIF(G$15:$G32,$F$16:$F$82),0)) ->  | H33: 0 | I33: =IF(H33=0,0,SUMIF('LTG-INT-BLD'!$A$11:$A$18,'LTG-INT-REF'!H33,'LTG-INT-BLD'!$F$11:$F$18)) -> 0 | J33: =IF(H33=0,0,SUMIF('LTG-INT-BLD'!$A$22:$A$33,'LTG-INT-REF'!H33,'LTG-INT-BLD'!$F$22:$F$33)) -> 0 | L33: 0 | M33: 0 | N33: =IF(COUNTIFS('LTG-INT-BLD'!$A$22:$A$33,'LTG-INT-REF'!H33,'LTG-INT-BLD'!$F$22:$F$33,txt_Area_Not_Defined)>0,1,0) -> 0 | O33: 1 | P33: 0
A34: Motion picture theater | B34: 0.61 W/ft2 | C34: 0.61 | E34: =INDEX(AreasInBld,MATCH(0,COUNTIF(E$15:$E33,AreasInBld),0)) ->  | G34: =INDEX($F$16:$F$82,MATCH(0,COUNTIF(G$15:$G33,$F$16:$F$82),0)) ->  | H34: 0 | I34: =IF(H34=0,0,SUMIF('LTG-INT-BLD'!$A$11:$A$18,'LTG-INT-REF'!H34,'LTG-INT-BLD'!$F$11:$F$18)) -> 0 | J34: =IF(H34=0,0,SUMIF('LTG-INT-BLD'!$A$22:$A$33,'LTG-INT-REF'!H34,'LTG-INT-BLD'!$F$22:$F$33)) -> 0 | L34: 0 | M34: 0 | N34: =IF(COUNTIFS('LTG-INT-BLD'!$A$22:$A$33,'LTG-INT-REF'!H34,'LTG-INT-BLD'!$F$22:$F$33,txt_Area_Not_Defined)>0,1,0) -> 0 | O34: 1 | P34: 0
A35: Multifamily | B35: 0.41 W/ft2 | C35: 0.41 | E35: =INDEX(AreasInBld,MATCH(0,COUNTIF(E$15:$E34,AreasInBld),0)) ->  | G35: =INDEX($F$16:$F$82,MATCH(0,COUNTIF(G$15:$G34,$F$16:$F$82),0)) ->  | H35: 0 | I35: =IF(H35=0,0,SUMIF('LTG-INT-BLD'!$A$11:$A$18,'LTG-INT-REF'!H35,'LTG-INT-BLD'!$F$11:$F$18)) -> 0 | J35: =IF(H35=0,0,SUMIF('LTG-INT-BLD'!$A$22:$A$33,'LTG-INT-REF'!H35,'LTG-INT-BLD'!$F$22:$F$33)) -> 0 | L35: 0 | M35: 0 | N35: =IF(COUNTIFS('LTG-INT-BLD'!$A$22:$A$33,'LTG-INT-REF'!H35,'LTG-INT-BLD'!$F$22:$F$33,txt_Area_Not_Defined)>0,1,0) -> 0 | O35: 1 | P35: 0
A36: Museum | B36: 0.8 W/ft2 | C36: 0.8 | E36: =INDEX(AreasInBld,MATCH(0,COUNTIF(E$15:$E35,AreasInBld),0)) ->  | G36: =INDEX($F$16:$F$82,MATCH(0,COUNTIF(G$15:$G35,$F$16:$F$82),0)) ->  | H36: 0 | I36: =IF(H36=0,0,SUMIF('LTG-INT-BLD'!$A$11:$A$18,'LTG-INT-REF'!H36,'LTG-INT-BLD'!$F$11:$F$18)) -> 0 | J36: =IF(H36=0,0,SUMIF('LTG-INT-BLD'!$A$22:$A$33,'LTG-INT-REF'!H36,'LTG-INT-BLD'!$F$22:$F$33)) -> 0 | L36: 0 | M36: 0 | N36: =IF(COUNTIFS('LTG-INT-BLD'!$A$22:$A$33,'LTG-INT-REF'!H36,'LTG-INT-BLD'!$F$22:$F$33,txt_Area_Not_Defined)>0,1,0) -> 0 | O36: 1 | P36: 0
A37: Office | B37: 0.66 W/ft2 | C37: 0.66 | E37: =INDEX(AreasInBld,MATCH(0,COUNTIF(E$15:$E36,AreasInBld),0)) ->  | G37: =INDEX($F$16:$F$82,MATCH(0,COUNTIF(G$15:$G36,$F$16:$F$82),0)) ->  | H37: 0 | I37: =IF(H37=0,0,SUMIF('LTG-INT-BLD'!$A$11:$A$18,'LTG-INT-REF'!H37,'LTG-INT-BLD'!$F$11:$F$18)) -> 0 | J37: =IF(H37=0,0,SUMIF('LTG-INT-BLD'!$A$22:$A$33,'LTG-INT-REF'!H37,'LTG-INT-BLD'!$F$22:$F$33)) -> 0 | L37: 0 | M37: 0 | N37: =IF(COUNTIFS('LTG-INT-BLD'!$A$22:$A$33,'LTG-INT-REF'!H37,'LTG-INT-BLD'!$F$22:$F$33,txt_Area_Not_Defined)>0,1,0) -> 0 | O37: 1 | P37: 0
A38: Parking garage | B38: 0.16 W/ft2 | C38: 0.16 | E38: =INDEX(AreasInBld,MATCH(0,COUNTIF(E$15:$E37,AreasInBld),0)) ->  | G38: =INDEX($F$16:$F$82,MATCH(0,COUNTIF(G$15:$G37,$F$16:$F$82),0)) ->  | H38: 0 | I38: =IF(H38=0,0,SUMIF('LTG-INT-BLD'!$A$11:$A$18,'LTG-INT-REF'!H38,'LTG-INT-BLD'!$F$11:$F$18)) -> 0 | J38: =IF(H38=0,0,SUMIF('LTG-INT-BLD'!$A$22:$A$33,'LTG-INT-REF'!H38,'LTG-INT-BLD'!$F$22:$F$33)) -> 0 | L38: 0 | M38: 0 | N38: =IF(COUNTIFS('LTG-INT-BLD'!$A$22:$A$33,'LTG-INT-REF'!H38,'LTG-INT-BLD'!$F$22:$F$33,txt_Area_Not_Defined)>0,1,0) -> 0 | O38: 1 | P38: 0
A39: Penitentiary | B39: 0.65 W/ft2 | C39: 0.65 | E39: =INDEX(AreasInBld,MATCH(0,COUNTIF(E$15:$E38,AreasInBld),0)) ->  | G39: =INDEX($F$16:$F$82,MATCH(0,COUNTIF(G$15:$G38,$F$16:$F$82),0)) ->  | H39: 0 | I39: =IF(H39=0,0,SUMIF('LTG-INT-BLD'!$A$11:$A$18,'LTG-INT-REF'!H39,'LTG-INT-BLD'!$F$11:$F$18)) -> 0 | J39: =IF(H39=0,0,SUMIF('LTG-INT-BLD'!$A$22:$A$33,'LTG-INT-REF'!H39,'LTG-INT-BLD'!$F$22:$F$33)) -> 0 | L39: 0 | M39: 0 | N39: =IF(COUNTIFS('LTG-INT-BLD'!$A$22:$A$33,'LTG-INT-REF'!H39,'LTG-INT-BLD'!$F$22:$F$33,txt_Area_Not_Defined)>0,1,0) -> 0 | O39: 1 | P39: 0
A40: Performing arts theater | B40: 1.0 W/ft2 | C40: 1 | E40: =INDEX(AreasInBld,MATCH(0,COUNTIF(E$15:$E39,AreasInBld),0)) ->  | G40: =INDEX($F$16:$F$82,MATCH(0,COUNTIF(G$15:$G39,$F$16:$F$82),0)) ->  | H40: 0 | I40: =IF(H40=0,0,SUMIF('LTG-INT-BLD'!$A$11:$A$18,'LTG-INT-REF'!H40,'LTG-INT-BLD'!$F$11:$F$18)) -> 0 | J40: =IF(H40=0,0,SUMIF('LTG-INT-BLD'!$A$22:$A$33,'LTG-INT-REF'!H40,'LTG-INT-BLD'!$F$22:$F$33)) -> 0 | L40: 0 | M40: 0 | N40: =IF(COUNTIFS('LTG-INT-BLD'!$A$22:$A$33,'LTG-INT-REF'!H40,'LTG-INT-BLD'!$F$22:$F$33,txt_Area_Not_Defined)>0,1,0) -> 0 | O40: 1 | P40: 0
A41: Police station | B41: 0.7 W/ft2 | C41: 0.7 | E41: =INDEX(AreasInBld,MATCH(0,COUNTIF(E$15:$E40,AreasInBld),0)) ->  | G41: =INDEX($F$16:$F$82,MATCH(0,COUNTIF(G$15:$G40,$F$16:$F$82),0)) ->  | H41: 0 | I41: =IF(H41=0,0,SUMIF('LTG-INT-BLD'!$A$11:$A$18,'LTG-INT-REF'!H41,'LTG-INT-BLD'!$F$11:$F$18)) -> 0 | J41: =IF(H41=0,0,SUMIF('LTG-INT-BLD'!$A$22:$A$33,'LTG-INT-REF'!H41,'LTG-INT-BLD'!$F$22:$F$33)) -> 0 | L41: 0 | M41: 0 | N41: =IF(COUNTIFS('LTG-INT-BLD'!$A$22:$A$33,'LTG-INT-REF'!H41,'LTG-INT-BLD'!$F$22:$F$33,txt_Area_Not_Defined)>0,1,0) -> 0 | O41: 1 | P41: 0
A42: Post office | B42: 0.7 W/ft2 | C42: 0.7 | E42: =INDEX(AreasInBld,MATCH(0,COUNTIF(E$15:$E41,AreasInBld),0)) ->  | G42: =INDEX($F$16:$F$82,MATCH(0,COUNTIF(G$15:$G41,$F$16:$F$82),0)) ->  | H42: 0 | I42: =IF(H42=0,0,SUMIF('LTG-INT-BLD'!$A$11:$A$18,'LTG-INT-REF'!H42,'LTG-INT-BLD'!$F$11:$F$18)) -> 0 | J42: =IF(H42=0,0,SUMIF('LTG-INT-BLD'!$A$22:$A$33,'LTG-INT-REF'!H42,'LTG-INT-BLD'!$F$22:$F$33)) -> 0 | L42: 0 | M42: 0 | N42: =IF(COUNTIFS('LTG-INT-BLD'!$A$22:$A$33,'LTG-INT-REF'!H42,'LTG-INT-BLD'!$F$22:$F$33,txt_Area_Not_Defined)>0,1,0) -> 0 | O42: 1 | P42: 0
A43: Religious building | B43: 0.8 W/ft2 | C43: 0.8 | E43: =INDEX(AreasInBld,MATCH(0,COUNTIF(E$15:$E42,AreasInBld),0)) ->  | G43: =INDEX($F$16:$F$82,MATCH(0,COUNTIF(G$15:$G42,$F$16:$F$82),0)) ->  | H43: 0 | I43: =IF(H43=0,0,SUMIF('LTG-INT-BLD'!$A$11:$A$18,'LTG-INT-REF'!H43,'LTG-INT-BLD'!$F$11:$F$18)) -> 0 | J43: =IF(H43=0,0,SUMIF('LTG-INT-BLD'!$A$22:$A$33,'LTG-INT-REF'!H43,'LTG-INT-BLD'!$F$22:$F$33)) -> 0 | L43: 0 | M43: 0 | N43: =IF(COUNTIFS('LTG-INT-BLD'!$A$22:$A$33,'LTG-INT-REF'!H43,'LTG-INT-BLD'!$F$22:$F$33,txt_Area_Not_Defined)>0,1,0) -> 0 | O43: 1 | P43: 0
A44: Retail | B44: 1.01 W/ft2 | C44: 1.01 | E44: =INDEX(AreasInBld,MATCH(0,COUNTIF(E$15:$E43,AreasInBld),0)) ->  | G44: =INDEX($F$16:$F$82,MATCH(0,COUNTIF(G$15:$G43,$F$16:$F$82),0)) ->  | H44: 0 | I44: =IF(H44=0,0,SUMIF('LTG-INT-BLD'!$A$11:$A$18,'LTG-INT-REF'!H44,'LTG-INT-BLD'!$F$11:$F$18)) -> 0 | J44: =IF(H44=0,0,SUMIF('LTG-INT-BLD'!$A$22:$A$33,'LTG-INT-REF'!H44,'LTG-INT-BLD'!$F$22:$F$33)) -> 0 | L44: 0 | M44: 0 | N44: =IF(COUNTIFS('LTG-INT-BLD'!$A$22:$A$33,'LTG-INT-REF'!H44,'LTG-INT-BLD'!$F$22:$F$33,txt_Area_Not_Defined)>0,1,0) -> 0 | O44: 1 | P44: 0
A45: School/university | B45: 0.7 W/ft2 | C45: 0.7 | E45: =INDEX(AreasInBld,MATCH(0,COUNTIF(E$15:$E44,AreasInBld),0)) ->  | G45: =INDEX($F$16:$F$82,MATCH(0,COUNTIF(G$15:$G44,$F$16:$F$82),0)) ->  | H45: 0 | I45: =IF(H45=0,0,SUMIF('LTG-INT-BLD'!$A$11:$A$18,'LTG-INT-REF'!H45,'LTG-INT-BLD'!$F$11:$F$18)) -> 0 | J45: =IF(H45=0,0,SUMIF('LTG-INT-BLD'!$A$22:$A$33,'LTG-INT-REF'!H45,'LTG-INT-BLD'!$F$22:$F$33)) -> 0 | L45: 0 | M45: 0 | N45: =IF(COUNTIFS('LTG-INT-BLD'!$A$22:$A$33,'LTG-INT-REF'!H45,'LTG-INT-BLD'!$F$22:$F$33,txt_Area_Not_Defined)>0,1,0) -> 0 | O45: 1 | P45: 0
A46: Sports arena | B46: 0.62 W/ft2 | C46: 0.62 | E46: =INDEX(AreasInBld,MATCH(0,COUNTIF(E$15:$E45,AreasInBld),0)) ->  | G46: =INDEX($F$16:$F$82,MATCH(0,COUNTIF(G$15:$G45,$F$16:$F$82),0)) ->  | H46: 0 | I46: =IF(H46=0,0,SUMIF('LTG-INT-BLD'!$A$11:$A$18,'LTG-INT-REF'!H46,'LTG-INT-BLD'!$F$11:$F$18)) -> 0 | J46: =IF(H46=0,0,SUMIF('LTG-INT-BLD'!$A$22:$A$33,'LTG-INT-REF'!H46,'LTG-INT-BLD'!$F$22:$F$33)) -> 0 | L46: 0 | M46: 0 | N46: =IF(COUNTIFS('LTG-INT-BLD'!$A$22:$A$33,'LTG-INT-REF'!H46,'LTG-INT-BLD'!$F$22:$F$33,txt_Area_Not_Defined)>0,1,0) -> 0 | O46: 1 | P46: 0
A47: Town hall | B47: 0.71 W/ft2 | C47: 0.71 | E47: =INDEX(AreasInBld,MATCH(0,COUNTIF(E$15:$E46,AreasInBld),0)) ->  | G47: =INDEX($F$16:$F$82,MATCH(0,COUNTIF(G$15:$G46,$F$16:$F$82),0)) ->  | H47: 0 | I47: =IF(H47=0,0,SUMIF('LTG-INT-BLD'!$A$11:$A$18,'LTG-INT-REF'!H47,'LTG-INT-BLD'!$F$11:$F$18)) -> 0 | J47: =IF(H47=0,0,SUMIF('LTG-INT-BLD'!$A$22:$A$33,'LTG-INT-REF'!H47,'LTG-INT-BLD'!$F$22:$F$33)) -> 0 | L47: 0 | M47: 0 | N47: =IF(COUNTIFS('LTG-INT-BLD'!$A$22:$A$33,'LTG-INT-REF'!H47,'LTG-INT-BLD'!$F$22:$F$33,txt_Area_Not_Defined)>0,1,0) -> 0 | O47: 1 | P47: 0
A48: Transportation | B48: 0.56 W/ft2 | C48: 0.56 | E48: =INDEX(AreasInBld,MATCH(0,COUNTIF(E$15:$E47,AreasInBld),0)) ->  | G48: =INDEX($F$16:$F$82,MATCH(0,COUNTIF(G$15:$G47,$F$16:$F$82),0)) ->  | H48: 0 | I48: =IF(H48=0,0,SUMIF('LTG-INT-BLD'!$A$11:$A$18,'LTG-INT-REF'!H48,'LTG-INT-BLD'!$F$11:$F$18)) -> 0 | J48: =IF(H48=0,0,SUMIF('LTG-INT-BLD'!$A$22:$A$33,'LTG-INT-REF'!H48,'LTG-INT-BLD'!$F$22:$F$33)) -> 0 | L48: 0 | M48: 0 | N48: =IF(COUNTIFS('LTG-INT-BLD'!$A$22:$A$33,'LTG-INT-REF'!H48,'LTG-INT-BLD'!$F$22:$F$33,txt_Area_Not_Defined)>0,1,0) -> 0 | O48: 1 | P48: 0
A49: Warehouse | B49: 0.4 W/ft2 | C49: 0.4 | E49: Formula below needs a blank as first cell of function | F49: =IF(ISTEXT(E51),E51,"") -> 
A50: Workshop | B50: 0.95 W/ft2 | C50: 0.95 | F50: =IF(ISTEXT(E52),E52,"") -> 
A51: None | B51: =CONCATENATE(TEXT(C51,"0.0#")," W/ft2") -> 0.0 W/ft2 | C51: 0 | E51: =INDEX('LTG-INT-BLD'!$A$22:$A$33,MATCH(0,COUNTIF(E$50:$E50,'LTG-INT-BLD'!$A$22:$A$33),0)) -> 0
E52: =INDEX('LTG-INT-BLD'!$A$22:$A$33,MATCH(0,COUNTIF(E$50:$E51,'LTG-INT-BLD'!$A$22:$A$33),0)) -> 
E53: =INDEX('LTG-INT-BLD'!$A$22:$A$33,MATCH(0,COUNTIF(E$50:$E52,'LTG-INT-BLD'!$A$22:$A$33),0)) -> 
E54: =INDEX('LTG-INT-BLD'!$A$22:$A$33,MATCH(0,COUNTIF(E$50:$E53,'LTG-INT-BLD'!$A$22:$A$33),0)) -> 
E55: =INDEX('LTG-INT-BLD'!$A$22:$A$33,MATCH(0,COUNTIF(E$50:$E54,'LTG-INT-BLD'!$A$22:$A$33),0)) -> 
E56: =INDEX('LTG-INT-BLD'!$A$22:$A$33,MATCH(0,COUNTIF(E$50:$E55,'LTG-INT-BLD'!$A$22:$A$33),0)) -> 
E57: =INDEX('LTG-INT-BLD'!$A$22:$A$33,MATCH(0,COUNTIF(E$50:$E56,'LTG-INT-BLD'!$A$22:$A$33),0)) -> 
E58: =INDEX('LTG-INT-BLD'!$A$22:$A$33,MATCH(0,COUNTIF(E$50:$E57,'LTG-INT-BLD'!$A$22:$A$33),0)) -> 
E59: =INDEX('LTG-INT-BLD'!$A$22:$A$33,MATCH(0,COUNTIF(E$50:$E58,'LTG-INT-BLD'!$A$22:$A$33),0)) -> 
E60: =INDEX('LTG-INT-BLD'!$A$22:$A$33,MATCH(0,COUNTIF(E$50:$E59,'LTG-INT-BLD'!$A$22:$A$33),0)) -> 
E61: =INDEX('LTG-INT-BLD'!$A$22:$A$33,MATCH(0,COUNTIF(E$50:$E60,'LTG-INT-BLD'!$A$22:$A$33),0)) -> 
E62: =INDEX('LTG-INT-BLD'!$A$22:$A$33,MATCH(0,COUNTIF(E$50:$E61,'LTG-INT-BLD'!$A$22:$A$33),0)) -> 
E63: =INDEX('LTG-INT-BLD'!$A$22:$A$33,MATCH(0,COUNTIF(E$50:$E62,'LTG-INT-BLD'!$A$22:$A$33),0)) -> 
E64: =INDEX('LTG-INT-BLD'!$A$22:$A$33,MATCH(0,COUNTIF(E$50:$E63,'LTG-INT-BLD'!$A$22:$A$33),0)) -> 
E65: =INDEX('LTG-INT-BLD'!$A$22:$A$33,MATCH(0,COUNTIF(E$50:$E64,'LTG-INT-BLD'!$A$22:$A$33),0)) -> 
E66: =INDEX('LTG-INT-BLD'!$A$22:$A$33,MATCH(0,COUNTIF(E$50:$E65,'LTG-INT-BLD'!$A$22:$A$33),0)) -> 
E67: =INDEX('LTG-INT-BLD'!$A$22:$A$33,MATCH(0,COUNTIF(E$50:$E66,'LTG-INT-BLD'!$A$22:$A$33),0)) -> 
E68: =INDEX('LTG-INT-BLD'!$A$22:$A$33,MATCH(0,COUNTIF(E$50:$E67,'LTG-INT-BLD'!$A$22:$A$33),0)) -> 
E69: =INDEX('LTG-INT-BLD'!$A$22:$A$33,MATCH(0,COUNTIF(E$50:$E68,'LTG-INT-BLD'!$A$22:$A$33),0)) -> 
E70: =INDEX('LTG-INT-BLD'!$A$22:$A$33,MATCH(0,COUNTIF(E$50:$E69,'LTG-INT-BLD'!$A$22:$A$33),0)) -> 
E71: =INDEX('LTG-INT-BLD'!$A$22:$A$33,MATCH(0,COUNTIF(E$50:$E70,'LTG-INT-BLD'!$A$22:$A$33),0)) -> 
E72: =INDEX('LTG-INT-BLD'!$A$22:$A$33,MATCH(0,COUNTIF(E$50:$E71,'LTG-INT-BLD'!$A$22:$A$33),0)) -> 
E73: =INDEX('LTG-INT-BLD'!$A$22:$A$33,MATCH(0,COUNTIF(E$50:$E72,'LTG-INT-BLD'!$A$22:$A$33),0)) -> 
E74: =INDEX('LTG-INT-BLD'!$A$22:$A$33,MATCH(0,COUNTIF(E$50:$E73,'LTG-INT-BLD'!$A$22:$A$33),0)) -> 
E75: =INDEX('LTG-INT-BLD'!$A$22:$A$33,MATCH(0,COUNTIF(E$50:$E74,'LTG-INT-BLD'!$A$22:$A$33),0)) -> 
E76: =INDEX('LTG-INT-BLD'!$A$22:$A$33,MATCH(0,COUNTIF(E$50:$E75,'LTG-INT-BLD'!$A$22:$A$33),0)) -> 
E77: =INDEX('LTG-INT-BLD'!$A$22:$A$33,MATCH(0,COUNTIF(E$50:$E76,'LTG-INT-BLD'!$A$22:$A$33),0)) -> 
E78: =INDEX('LTG-INT-BLD'!$A$22:$A$33,MATCH(0,COUNTIF(E$50:$E77,'LTG-INT-BLD'!$A$22:$A$33),0)) -> 
E79: =INDEX('LTG-INT-BLD'!$A$22:$A$33,MATCH(0,COUNTIF(E$50:$E78,'LTG-INT-BLD'!$A$22:$A$33),0)) -> 
E80: =INDEX('LTG-INT-BLD'!$A$22:$A$33,MATCH(0,COUNTIF(E$50:$E79,'LTG-INT-BLD'!$A$22:$A$33),0)) -> 
E81: =INDEX('LTG-INT-BLD'!$A$22:$A$33,MATCH(0,COUNTIF(E$50:$E80,'LTG-INT-BLD'!$A$22:$A$33),0)) -> 
E82: =INDEX('LTG-INT-BLD'!$A$22:$A$33,MATCH(0,COUNTIF(E$50:$E81,'LTG-INT-BLD'!$A$22:$A$33),0)) -> 
E83: =INDEX('LTG-INT-BLD'!$A$22:$A$33,MATCH(0,COUNTIF(E$50:$E82,'LTG-INT-BLD'!$A$22:$A$33),0)) -> 
E84: =INDEX('LTG-INT-BLD'!$A$22:$A$33,MATCH(0,COUNTIF(E$50:$E83,'LTG-INT-BLD'!$A$22:$A$33),0)) -> 

Sheet LTG-EXT
A1: Exterior Lighting | E1: LTG-EXT
A2: ='LTG-SUM'!A2 -> 2015 Washington State Energy Code Compliance Forms for Commercial Buildings including R2, R3, R4 over 3 stories and all R1 | E2: ='LTG-SUM'!G2 -> Revised August 2016
A3: Project Title: | B3: =IF('LTG-SUM'!C3="1 - This title will copy onto other forms","Fill this line out on LGT-SUM",'LTG-SUM'!C3) -> Fill this line out on LGT-SUM | D3: ='LTG-SUM'!F3 -> Date | E3: ='LTG-SUM'!G3 -> 2016-07-01
A4: Exterior Lighting Zone | D4: ='LTG-SUM'!F4 -> For Building Department Use
A7: Calculation Area | E7: ='LTG-SUM'!F7 -> 0
A10: Building Grounds
A13: Tradable Maximum Allowed Lighting Wattage NOTE 1 | D13: Base Site Allowance: | E13: =Base_Site_Allowance -> 0
A15: Tradable Surfaces | B15: Surface Description | C15: Area (ft2), perimeter (lf) or # of items | D15: Allowed Watts per ft2 or per lf | E15: Allowed Watts x ft2 (or x lf)
D16: =IF(A16<>"",VLOOKUP(A16,TradableAreas,Text_Col,FALSE),"") ->  | E16: =IF(OR(ExtAlt_LT50pct,D16=""),0,IF(ISNA(IF(VLOOKUP(A16,$A$24:$E$27,5,0)>0,"",NA())),"Unlit",C16*VLOOKUP(A16,TradableAreas,Numb_Col,FALSE))) -> 0 | F16: =IF(ISNA(INDEX(A$16:A$20,MATCH(0,COUNTIF(F$15:$F15,A$16:A$20),0))),"",INDEX(A$16:A$20,MATCH(0,COUNTIF(F$15:$F15,A$16:A$20),0))) -> 0
D17: =IF(A17<>"",VLOOKUP(A17,TradableAreas,Text_Col,FALSE),"") ->  | E17: =IF(OR(ExtAlt_LT50pct,D17=""),0,IF(ISNA(IF(VLOOKUP(A17,$A$24:$E$27,5,0)>0,"",NA())),"Unlit",C17*VLOOKUP(A17,TradableAreas,Numb_Col,FALSE))) -> 0 | F17: =IF(ISNA(INDEX(A$16:A$20,MATCH(0,COUNTIF(F$15:$F16,A$16:A$20),0))),"",INDEX(A$16:A$20,MATCH(0,COUNTIF(F$15:$F16,A$16:A$20),0))) -> 
D18: =IF(A18<>"",VLOOKUP(A18,TradableAreas,Text_Col,FALSE),"") ->  | E18: =IF(OR(ExtAlt_LT50pct,D18=""),0,IF(ISNA(IF(VLOOKUP(A18,$A$24:$E$27,5,0)>0,"",NA())),"Unlit",C18*VLOOKUP(A18,TradableAreas,Numb_Col,FALSE))) -> 0 | F18: =IF(ISNA(INDEX(A$16:A$20,MATCH(0,COUNTIF(F$15:$F17,A$16:A$20),0))),"",INDEX(A$16:A$20,MATCH(0,COUNTIF(F$15:$F17,A$16:A$20),0))) -> 
A19: =IF(ExtAlt_LT50pct,"Existing Undefined Area","") ->  | D19: =IF(ExtAlt_LT50pct,"Enter Total Existing Wattage in Tradable Categories (prior to alteration):","") ->  | F19: =IF(ISNA(INDEX(A$16:A$20,MATCH(0,COUNTIF(F$15:$F18,A$16:A$20),0))),"",INDEX(A$16:A$20,MATCH(0,COUNTIF(F$15:$F18,A$16:A$20),0))) -> 
D21: Total Allowed Tradable + Site Allowance Watts: | E21: =IF(ExtAlt_LT50pct,E19,ROUNDUP(SUM(E13:E20),0)) -> 0
A22: Tradable Proposed Lighting Wattage NOTE 2
A23: Tradable Surface | B23: Fixture Description NOTE 3, 4 | C23: Number of Fixtures | D23: Watts per Fixture NOTE 5 | E23: Watts Proposed
E24: =IF(AND(A24="",C24=0,D24=0),0,IF(ExtAlt_LT50pct, IF(ISNA(IF(VLOOKUP(A24,extAllowedTradableAreasLT50,1,FALSE)>0,"",NA())),"Not Defined",C24*D24), IF(ISNA(IF(VLOOKUP(A24,$A$16:$E$20,3,FALSE)>0,"",NA())),"Not Defined",C24*D24))) -> 0
E25: =IF(AND(A25="",C25=0,D25=0),0,IF(ExtAlt_LT50pct, IF(ISNA(IF(VLOOKUP(A25,extAllowedTradableAreasLT50,1,FALSE)>0,"",NA())),"Not Defined",C25*D25), IF(ISNA(IF(VLOOKUP(A25,$A$16:$E$20,3,FALSE)>0,"",NA())),"Not Defined",C25*D25))) -> 0
E26: =IF(AND(A26="",C26=0,D26=0),0,IF(ExtAlt_LT50pct, IF(ISNA(IF(VLOOKUP(A26,extAllowedTradableAreasLT50,1,FALSE)>0,"",NA())),"Not Defined",C26*D26), IF(ISNA(IF(VLOOKUP(A26,$A$16:$E$20,3,FALSE)>0,"",NA())),"Not Defined",C26*D26))) -> 0 | K26: 1
D28: Total Proposed Tradable Watts: | E28: =ROUND(SUM(E24:E27),0) -> 0 | G28: =COUNTIF(E24:E27,"Not Defined") -> 0
A31: Non-Tradable Maximum Allowed Lighting Wattage NOTE 1 | D31: Site Allowance Remaining: | E31: =site_available_nonTradable -> 0
A33: Non-Tradable Surfaces | B33: Surface Description | C33: Area (ft2), perimeter (lf) or # of items | D33: Allowed Watts per ft2 or per lf | E33: Allowed Watts x ft2 (or x lf)
D34: =IF(A34<>"",VLOOKUP(A34,NonTradableAreas,Text_Col,FALSE),"") ->  | E34: =IF(AND(A34<>"",NOT(ExtAlt_LT50pct)),IF(ISNA(IF(VLOOKUP(A34,$A$41:$F$44,5,FALSE)>0,"",NA())),"Unlit", ROUNDUP(IF(A34<>"Automated Teller",C34*VLOOKUP(A34,NonTradableAreas,Numb_Col,FALSE),IF(C34>0,270+(C34-1)*90,0)),0)),"") ->  | F34: =IF(ISNA(INDEX(A$34:A$38,MATCH(0,COUNTIF(F$33:$F33,A$34:A$38),0))),"",INDEX(A$34:A$38,MATCH(0,COUNTIF(F$33:$F33,A$34:A$38),0))) -> 0
E35: =IF(AND(A35<>"",NOT(ExtAlt_LT50pct)),IF(ISNA(IF(VLOOKUP(A35,$A$41:$F$44,5,FALSE)>0,"",NA())),"Unlit", ROUNDUP(IF(A35<>"Automated Teller",C35*VLOOKUP(A35,NonTradableAreas,Numb_Col,FALSE),IF(C35>0,270+(C35-1)*90,0)),0)),"") ->  | F35: =IF(ISNA(INDEX(A$34:A$38,MATCH(0,COUNTIF(F$33:$F34,A$34:A$38),0))),"",INDEX(A$34:A$38,MATCH(0,COUNTIF(F$33:$F34,A$34:A$38),0))) -> 
E36: =IF(AND(A36<>"",NOT(ExtAlt_LT50pct)),IF(ISNA(IF(VLOOKUP(A36,$A$41:$F$44,5,FALSE)>0,"",NA())),"Unlit", ROUNDUP(IF(A36<>"Automated Teller",C36*VLOOKUP(A36,NonTradableAreas,Numb_Col,FALSE),IF(C36>0,270+(C36-1)*90,0)),0)),"") ->  | F36: =IF(ISNA(INDEX(A$34:A$38,MATCH(0,COUNTIF(F$33:$F35,A$34:A$38),0))),"",INDEX(A$34:A$38,MATCH(0,COUNTIF(F$33:$F35,A$34:A$38),0))) -> 
E37: =IF(AND(A37<>"",NOT(ExtAlt_LT50pct)),IF(ISNA(IF(VLOOKUP(A37,$A$41:$F$44,5,FALSE)>0,"",NA())),"Unlit", ROUNDUP(IF(A37<>"Automated Teller",C37*VLOOKUP(A37,NonTradableAreas,Numb_Col,FALSE),IF(C37>0,270+(C37-1)*90,0)),0)),"") ->  | F37: =IF(ISNA(INDEX(A$34:A$38,MATCH(0,COUNTIF(F$33:$F36,A$34:A$38),0))),"",INDEX(A$34:A$38,MATCH(0,COUNTIF(F$33:$F36,A$34:A$38),0))) -> 
A38: =IF(ExtAlt_LT50pct,"Existing Undefined Area","") ->  | D38: =IF(ExtAlt_LT50pct,"Enter Total Existing Wattage in Non-Tradable Categories (prior to alteration):","") ->  | F38: =IF(ISNA(INDEX(A$34:A$38,MATCH(0,COUNTIF(F$33:$F37,A$34:A$38),0))),"",INDEX(A$34:A$38,MATCH(0,COUNTIF(F$33:$F37,A$34:A$38),0))) -> 
A39: Non-Tradable Proposed Lighting Wattage NOTE 2
A40: Non-Tradable Surface | B40: Fixture Description NOTE 3, 4 | C40: Number of Fixtures | D40: Watts per Fixture NOTE 5 | E40: Watts Proposed
E41: =IF(AND(A41="",C41=0,D41=0),0,IF(ExtAlt_LT50pct, IF(ISNA(IF(VLOOKUP(A41,extAllowedNonTradableAreasLT50,1,FALSE)>0,"",NA())),"Not Defined",C41*D41), IF(ISNA(IF(VLOOKUP(A41,$A$34:$E$38,3,FALSE)>0,"",NA())),"Not Defined",ROUNDUP(C41*D41,0)))) -> 0
E42: =IF(AND(A42="",C42=0,D42=0),0,IF(ExtAlt_LT50pct, IF(ISNA(IF(VLOOKUP(A42,extAllowedNonTradableAreasLT50,1,FALSE)>0,"",NA())),"Not Defined",C42*D42), IF(ISNA(IF(VLOOKUP(A42,$A$34:$E$38,3,FALSE)>0,"",NA())),"Not Defined",ROUNDUP(C42*D42,0)))) -> 0
E43: =IF(AND(A43="",C43=0,D43=0),0,IF(ExtAlt_LT50pct, IF(ISNA(IF(VLOOKUP(A43,extAllowedNonTradableAreasLT50,1,FALSE)>0,"",NA())),"Not Defined",C43*D43), IF(ISNA(IF(VLOOKUP(A43,$A$34:$E$38,3,FALSE)>0,"",NA())),"Not Defined",ROUNDUP(C43*D43,0)))) -> 0 | K43: 1
D44: Non-Tradable Watts Exceeding LPA: | E44: =IF(Zone<5,Excess_Watts,"") ->  | G44: =COUNTIF(E41:E44,"Not Defined") -> 0
D45: Remaining Site Allowance: | E45: =IF(Zone<5,Site_Allowance_Balance,"") -> 
A47: Exterior Lighting | E47: ='LTG-EXT-REF'!N58 -> 
C56: Validation Range to Use
C57: Tradable | D57: =IF(ExtAlt_LT50pct,"extAllowedTradableAreasLT50","extAllowedTradableAreas") -> extAllowedTradableAreas
C58: NonTradable | D58: =IF(ExtAlt_LT50pct,"extAllowedNonTradableAreasLT50","extAllowedNonTradableAreas") -> extAllowedNonTradableAreas
A60: Lists with space an end so user can select blank if they can't figure out to use delete key | C60: List for < 50% cas
A62: ='LTG-EXT-REF'!A12 -> Tradable Locations | C62: ='LTG-EXT-REF'!A12 -> Tradable Locations
A63: ='LTG-EXT-REF'!A13 -> Base Site Allowance | C63: ='LTG-EXT-REF'!A13 -> Base Site Allowance
A64: ='LTG-EXT-REF'!A14 -> Uncovered Parking and drives | C64: ='LTG-EXT-REF'!A14 -> Uncovered Parking and drives
A65: ='LTG-EXT-REF'!A15 -> Grounds Walkways <10 wide | C65: ='LTG-EXT-REF'!A15 -> Grounds Walkways <10 wide
A66: ='LTG-EXT-REF'!A16 -> Grounds Walkways >10' wide | C66: ='LTG-EXT-REF'!A16 -> Grounds Walkways >10' wide
A67: ='LTG-EXT-REF'!A17 -> Stairways | C67: ='LTG-EXT-REF'!A17 -> Stairways
A68: ='LTG-EXT-REF'!A18 -> Pedestrian Tunnel | C68: ='LTG-EXT-REF'!A18 -> Pedestrian Tunnel
A69: ='LTG-EXT-REF'!A19 -> Main Entry Door | C69: ='LTG-EXT-REF'!A19 -> Main Entry Door
A70: ='LTG-EXT-REF'!A20 -> Other Entry Door | C70: ='LTG-EXT-REF'!A20 -> Other Entry Door
A71: ='LTG-EXT-REF'!A21 -> Entry Canopies | C71: ='LTG-EXT-REF'!A21 -> Entry Canopies
A72: ='LTG-EXT-REF'!A22 -> Sales Canopies | C72: ='LTG-EXT-REF'!A22 -> Sales Canopies
A73: ='LTG-EXT-REF'!A23 -> Open Area Sales | C73: ='LTG-EXT-REF'!A23 -> Open Area Sales
A74: ='LTG-EXT-REF'!A24 -> Vehicle Sales Street Frontage | C74: ='LTG-EXT-REF'!A24 -> Vehicle Sales Street Frontage
C75: ='LTG-EXT-REF'!A25 -> Existing Undefined Area
C76: ='LTG-EXT-REF'!A26 -> 0
C77: ='LTG-EXT-REF'!A27 -> 0
A78: ='LTG-EXT-REF'!A29 -> 0 | C78: ='LTG-EXT-REF'!A28 -> 0
C79: ='LTG-EXT-REF'!A29 -> 0
A80: ='LTG-EXT-REF'!A30 -> 0 | C80: ='LTG-EXT-REF'!A30 -> 0
A81: ='LTG-EXT-REF'!A31 -> Non-Tradable | C81: ='LTG-EXT-REF'!A31 -> Non-Tradable
A82: ='LTG-EXT-REF'!A32 -> Base Site Allowance | C82: ='LTG-EXT-REF'!A32 -> Base Site Allowance
A83: ='LTG-EXT-REF'!A33 -> Bldg. Façade | C83: ='LTG-EXT-REF'!A33 -> Bldg. Façade
A84: ='LTG-EXT-REF'!A34 -> Automated Teller | C84: ='LTG-EXT-REF'!A34 -> Automated Teller
A85: ='LTG-EXT-REF'!A35 -> Gate House | C85: ='LTG-EXT-REF'!A35 -> Gate House
A86: ='LTG-EXT-REF'!A36 -> Loading Areas - Law & EMS | C86: ='LTG-EXT-REF'!A36 -> Loading Areas - Law & EMS
A87: ='LTG-EXT-REF'!A37 -> Drive up Windows & Doors | C87: ='LTG-EXT-REF'!A37 -> Drive up Windows & Doors
A88: ='LTG-EXT-REF'!A38 -> 24 Hour Retail Entrance Parking | C88: ='LTG-EXT-REF'!A38 -> 24 Hour Retail Entrance Parking
C89: ='LTG-EXT-REF'!A39 -> Existing Undefined Area

Sheet LTG-EXT-REF (hidden)
A1: Calculation Scope | B1: ExtAlt_LT50pct
A2: 5 | B2: =ExtCalculationScope=1 -> FALSE
A5: Selected Lighting Zone | B5: 5 | C5: Site Allowance | D5: =IF(ExtAlt_LT50pct,0,VLOOKUP("Base Site Allowance",TradableAreas,Numb_Col,FALSE)) -> 0
A6: Column Index
A7: Text | B7: Number
A8: =ROUND(IF(B5>=4,3,2)+(Zone-1)*2,1) -> 11 | B8: =ROUND(IF(B5>=4,4,3)+(Zone-1)*2,1) -> 12
A9: Exterior Lighting Allowance Lookup Tables
N10: If we set up area checking for tradable lighting
B11: Zone 1 | D11: Zone 2 | F11: Zone 3 | I11: Zone 4 | K11: No Zone Selected | O11: Error | P11: kind of error
A12: Tradable Locations | B12: text | C12: W/unit | D12: text | E12: W/unit | F12: text | G12: W/unit | I12: text | J12: W/unit | M12: allowed | N12: proposed | O12: unlit area | P12: undeclared area
A13: Base Site Allowance | B13: 500 W | C13: 500 | D13: 600 W | E13: 600 | F13: 750 W | G13: 750 | I13: 1300 W | J13: 1300 | K13: Select Zone | L13: 0 | M13: 0 | N13: 0 | O13: 0 | P13: 0
A14: Uncovered Parking and drives | B14: 0.04 W/ft2 | C14: 0.04 | D14: 0.06 W/ft2 | E14: 0.06 | F14: 0.08 W/ft2 | G14: 0.08 | I14: 0.10 W/ft2 | J14: 0.1 | K14: Select Zone | L14: 0 | M14: =SUMIF('LTG-EXT'!$A$16:$A$20,A14,'LTG-EXT'!$E$16:$E$20) -> 0 | N14: =SUMIF('LTG-EXT'!$A$24:$A$27,A14,'LTG-EXT'!$E$24:$E$27) -> 0 | O14: =IF(AND(M14>0,N14=0),1,0) -> 0 | P14: =IF(AND(N14>0,M14=0),1,0) -> 0
A15: Grounds Walkways <10 wide | B15: 0.7 W/LF | C15: 0.7 | D15: 0.7 W/LF | E15: 0.7 | F15: 0.8 W/LF | G15: 0.8 | I15: 1.0 W/LF | J15: 1 | K15: Select Zone | L15: 0 | M15: =SUMIF('LTG-EXT'!$A$16:$A$20,A15,'LTG-EXT'!$E$16:$E$20) -> 0 | N15: =SUMIF('LTG-EXT'!$A$24:$A$27,A15,'LTG-EXT'!$E$24:$E$27) -> 0 | O15: =IF(AND(M15>0,N15=0),1,0) -> 0 | P15: =IF(AND(N15>0,M15=0),1,0) -> 0
A16: Grounds Walkways >10' wide | B16: 0.14 W/ft2 | C16: 0.14 | D16: 0.14 W/ft2 | E16: 0.14 | F16: 0.16 W/ft2 | G16: 0.16 | I16: 0.20 W/ft2 | J16: 0.2 | K16: Select Zone | L16: 0 | M16: =SUMIF('LTG-EXT'!$A$16:$A$20,A16,'LTG-EXT'!$E$16:$E$20) -> 0 | N16: =SUMIF('LTG-EXT'!$A$24:$A$27,A16,'LTG-EXT'!$E$24:$E$27) -> 0 | O16: 0 | P16: 0
A17: Stairways | B17: 0.75 W/ft2 | C17: 0.75 | D17: 1.0 W/ft2 | E17: 1 | F17: 1.0 W/ft2 | G17: 1 | I17: 1.0 W/ft2 | J17: 1 | K17: Select Zone | L17: 0 | M17: =SUMIF('LTG-EXT'!$A$16:$A$20,A17,'LTG-EXT'!$E$16:$E$20) -> 0 | N17: =SUMIF('LTG-EXT'!$A$24:$A$27,A17,'LTG-EXT'!$E$24:$E$27) -> 0 | O17: 0 | P17: 0
A18: Pedestrian Tunnel | B18: 0.15 W/ft2 | C18: 0.15 | D18: 0.15 W/ft2 | E18: 0.15 | F18: 0.2 W/ft2 | G18: 0.2 | I18: 0.3 W/ft2 | J18: 0.3 | K18: Select Zone | L18: 0 | M18: =SUMIF('LTG-EXT'!$A$16:$A$20,A18,'LTG-EXT'!$E$16:$E$20) -> 0 | N18: =SUMIF('LTG-EXT'!$A$24:$A$27,A18,'LTG-EXT'!$E$24:$E$27) -> 0 | O18: 0 | P18: 0
A19: Main Entry Door | B19: 20W/LF door | C19: 20 | D19: 20W/LF door | E19: 20 | F19: 30W/LF door | G19: 30 | I19: 30W/LF door | J19: 30 | K19: Select Zone | L19: 0 | M19: =SUMIF('LTG-EXT'!$A$16:$A$20,A19,'LTG-EXT'!$E$16:$E$20) -> 0 | N19: =SUMIF('LTG-EXT'!$A$24:$A$27,A19,'LTG-EXT'!$E$24:$E$27) -> 0 | O19: 0 | P19: 0
A20: Other Entry Door | B20: 20W/LF door | C20: 20 | D20: 20W/LF door | E20: 20 | F20: 20W/LF door | G20: 20 | I20: 20W/LF door | J20: 20 | K20: Select Zone | L20: 0 | M20: =SUMIF('LTG-EXT'!$A$16:$A$20,A20,'LTG-EXT'!$E$16:$E$20) -> 0 | N20: =SUMIF('LTG-EXT'!$A$24:$A$27,A20,'LTG-EXT'!$E$24:$E$27) -> 0 | O20: 0 | P20: 0
A21: Entry Canopies | B21: 0.25 W/ft2 | C21: 0.25 | D21: 0.25 W/ft2 | E21: 0.25 | F21: 0.4 W/ft2 | G21: 0.4 | I21: 0.4 W/ft2 | J21: 0.4 | K21: Select Zone | L21: 0 | M21: =SUMIF('LTG-EXT'!$A$16:$A$20,A21,'LTG-EXT'!$E$16:$E$20) -> 0 | N21: =SUMIF('LTG-EXT'!$A$24:$A$27,A21,'LTG-EXT'!$E$24:$E$27) -> 0 | O21: 0 | P21: 0
A22: Sales Canopies | B22: 0.6 W/ft2 | C22: 0.6 | D22: 0.6 W/ft2 | E22: 0.6 | F22: 0.8 W/ft2 | G22: 0.8 | I22: 1.0 W/ft2 | J22: 1 | K22: Select Zone | L22: 0 | M22: =SUMIF('LTG-EXT'!$A$16:$A$20,A22,'LTG-EXT'!$E$16:$E$20) -> 0 | N22: =SUMIF('LTG-EXT'!$A$24:$A$27,A22,'LTG-EXT'!$E$24:$E$27) -> 0 | O22: 0 | P22: 0
A23: Open Area Sales | B23: 0.25 W/ft2 | C23: 0.25 | D23: 0.25 W/ft2 | E23: 0.25 | F23: 0.5 W/ft2 | G23: 0.5 | I23: 0.7 W/ft2 | J23: 0.7 | K23: Select Zone | L23: 0 | M23: =SUMIF('LTG-EXT'!$A$16:$A$20,A23,'LTG-EXT'!$E$16:$E$20) -> 0 | N23: =SUMIF('LTG-EXT'!$A$24:$A$27,A23,'LTG-EXT'!$E$24:$E$27) -> 0 | O23: 0 | P23: 0
A24: Vehicle Sales Street Frontage | B24: No Allowance | C24: 0 | D24: 10 W/LF frontage | E24: 10 | F24: 10 W/LF frontage | G24: 10 | I24: 30 W/LF frontage | J24: 30 | K24: Select Zone | L24: 0 | M24: =SUMIF('LTG-EXT'!$A$16:$A$20,A24,'LTG-EXT'!$E$16:$E$20) -> 0 | N24: =SUMIF('LTG-EXT'!$A$24:$A$27,A24,'LTG-EXT'!$E$24:$E$27) -> 0 | O24: =IF(AND(M24>0,N24=0),1,0) -> 0 | P24: =IF(AND(N24>0,M24=0),1,0) -> 0
A25: Existing Undefined Area | C25: 0 | E25: 0 | G25: 0 | J25: 0 | K25: Select Zone | L25: 0 | M25: =SUMIF('LTG-EXT'!$A$16:$A$20,A25,'LTG-EXT'!$E$16:$E$20) -> 0 | N25: =SUMIF('LTG-EXT'!$A$24:$A$27,A25,'LTG-EXT'!$E$24:$E$27) -> 0 | O25: 0 | P25: 0
N26: ERROR if >0 | O26: =COUNTIF(O12:O23,">0") -> 0 | P26: =COUNTIF(P12:P23,">0") -> 0
P27: Site Remaining After Tradable
P28: =IF('LTG-EXT'!E21-'LTG-EXT'!E28>0,Base_Site_Allowance,'LTG-EXT'!E21-'LTG-EXT'!E28+Base_Site_Allowance) -> 0
P29: Site Available for NonTradeable | S29: Not USED
B30: Zone 1 | D30: Zone 2 | F30: Zone 3 | I30: Zone 4 | P30: =IF(ExtAlt_LT50pct,0,MAX(0,Site_Remaining)) -> 0 | R30: Fail Flag | S30: No Site Allowance | U30: With Site Allowance
A31: Non-Tradable | B31: text | C31: W/unit | D31: text | E31: W/unit | F31: text | G31: W/unit | I31: text | J31: W/unit | M31: allowed | N31: proposed | O31: Excess Watts | P31: Site Allowance | Q31: Fail Flag | R31: w/ Site Allowance | S31: fail msg | T31: No Grace | U31: warning | V31: Grace
A32: Base Site Allowance | B32: 500 W | C32: 500 | D32: 600 W | E32: 600 | F32: 750 W | G32: 750 | I32: 1300 W | J32: 1300 | K32: Select Zone | L32: 0 | M32: 0 | N32: 0 | O32: =IF(ExtAlt_LT50pct,0,MAX(0,$N32-$M32)) -> 0 | P32: =MAX(0,site_available_nonTradable)-O32 -> 0 | Q32: =IF(ROUND(N32,0)>ROUND(M32,0),1,0) -> 0 | R32: =IF(AND(Q32=1,P32<0),1,0) -> 0 | T32: =Q32 -> 0 | V32: =R32 -> 0
A33: Bldg. Façade | B33: No Allowance | C33: 0 | D33: 0.1 W/ft2 | E33: 0.1 | F33: 0.15 W/ft2 | G33: 0.15 | I33: 0.2 W/ft2 | J33: 0.2 | K33: Select Zone | L33: 0 | M33: =SUMIF('LTG-EXT'!$A$34:$A$38,A33,'LTG-EXT'!$E$34:$E$38) -> 0 | N33: =SUMIF('LTG-EXT'!$A$41:$A$44,A33,'LTG-EXT'!$E$41:$E$44) -> 0 | O33: 0 | P33: =$P32-O33 -> 0 | Q33: 0 | R33: 0 | S33: =IF(Q33=1,IF(T33=1,A33,CONCATENATE(" & ",A33) ),"") ->  | T33: =T32+Q33 -> 0 | V33: =V32+R33 -> 0
A34: Automated Teller | B34: 270W+90W/add. | C34: 270 | D34: 270W+90W/add. | E34: 270 | F34: 270W+90W/add. | G34: 270 | I34: 270W+90W/add. | J34: 270 | K34: Select Zone | L34: 0 | M34: =SUMIF('LTG-EXT'!$A$34:$A$38,A34,'LTG-EXT'!$E$34:$E$38) -> 0 | N34: =SUMIF('LTG-EXT'!$A$41:$A$44,A34,'LTG-EXT'!$E$41:$E$44) -> 0 | O34: 0 | P34: 0 | Q34: 0 | R34: 0 | T34: 0 | U34: =IF(R34=1,IF(V34=1,A34,CONCATENATE(" & ",A34) ),"") ->  | V34: 0
A35: Gate House | B35: 0.75 W/ft2 | C35: 0.75 | D35: 0.75 W/ft2 | E35: 0.75 | F35: 0.75 W/ft2 | G35: 0.75 | I35: 0.75 W/ft2 | J35: 0.75 | K35: Select Zone | L35: 0 | M35: =SUMIF('LTG-EXT'!$A$34:$A$38,A35,'LTG-EXT'!$E$34:$E$38) -> 0 | N35: =SUMIF('LTG-EXT'!$A$41:$A$44,A35,'LTG-EXT'!$E$41:$E$44) -> 0 | O35: 0 | P35: 0 | Q35: 0 | R35: 0 | T35: 0 | V35: 0
A36: Loading Areas - Law & EMS | B36: 0.5 W/ft2 | C36: 0.5 | D36: 0.5 W/ft2 | E36: 0.5 | F36: 0.5 W/ft2 | G36: 0.5 | I36: 0.5 W/ft2 | J36: 0.5 | K36: Select Zone | L36: 0 | M36: =SUMIF('LTG-EXT'!$A$34:$A$38,A36,'LTG-EXT'!$E$34:$E$38) -> 0 | N36: =SUMIF('LTG-EXT'!$A$41:$A$44,A36,'LTG-EXT'!$E$41:$E$44) -> 0 | O36: 0 | P36: 0 | Q36: 0 | R36: 0 | T36: 0 | V36: 0
A37: Drive up Windows & Doors | B37: 400W/driveup | C37: 400 | D37: 400W/driveup | E37: 400 | F37: 400W/driveup | G37: 400 | I37: 400W/driveup | J37: 400 | K37: Select Zone | L37: 0 | M37: =SUMIF('LTG-EXT'!$A$34:$A$38,A37,'LTG-EXT'!$E$34:$E$38) -> 0 | N37: =SUMIF('LTG-EXT'!$A$41:$A$44,A37,'LTG-EXT'!$E$41:$E$44) -> 0 | O37: 0 | P37: 0 | Q37: 0 | R37: =IF(AND(Q37=1,P37<0),1,0) -> 0 | T37: 0 | V37: 0
A38: 24 Hour Retail Entrance Parking | B38: 800W per Entry | C38: 800 | D38: 800W per Entry | E38: 800 | F38: 800W per Entry | G38: 800 | I38: 800W per Entry | J38: 800 | K38: Select Zone | L38: 0 | M38: =SUMIF('LTG-EXT'!$A$34:$A$38,A38,'LTG-EXT'!$E$34:$E$38) -> 0 | N38: =SUMIF('LTG-EXT'!$A$41:$A$44,A38,'LTG-EXT'!$E$41:$E$44) -> 0 | O38: 0 | P38: 0 | Q38: =IF(ROUND(N38,0)>ROUND(M38,0),1,0) -> 0 | R38: =IF(AND(Q38=1,P38<0),1,0) -> 0 | S38: =IF(Q38=1,IF(T38=1,A38,CONCATENATE(" & ",A38) ),"") ->  | T38: 0 | U38: =IF(R38=1,IF(V38=1,A38,CONCATENATE(" & ",A38) ),"") ->  | V38: 0
A39: Existing Undefined Area | C39: 0 | E39: 0 | G39: 0 | J39: 0 | K39: Select Zone | L39: 0 | M39: =SUMIF('LTG-EXT'!$A$34:$A$38,A39,'LTG-EXT'!$E$34:$E$38) -> 0 | N39: =SUMIF('LTG-EXT'!$A$41:$A$44,A39,'LTG-EXT'!$E$41:$E$44)+SUM(N32:N38) -> 0 | O39: =IF(ExtAlt_LT50pct,MAX(0,$N39-$M39),0) -> 0 | P39: 0 | Q39: 0 | R39: =IF(AND(Q39=1,P39<0),1,0) -> 0 | T39: 0 | V39: 0
O41: Excess Watts | P41: Site Allowance Balance
O42: =SUM(O32:O40) -> 0 | P42: =IF(Site_Remaining<0,P39+Site_Remaining,P39) -> 0
K45: Total in Categories | N45: =SUM(N33:N40) -> 0 | O45: sum of allowed and proposed watts in non-tradable categories
K46: Total | N46: =SUMPRODUCT('LTG-EXT'!$C$41:$C$44,'LTG-EXT'!$D$41:$D$44) + SUMPRODUCT('LTG-EXT'!$C$24:$C$27,'LTG-EXT'!$D$24:$D$27) -> 0 | O46: Sum all entered watts. If diff from category totals then watts entered in undefined category.
K47: Error | N47: =OR('LTG-EXT'!G28>0,'LTG-EXT'!G44>0) -> FALSE | P47: 1=Error : watts entered in undefined category
K48: Error Msg | N48: NOT USED - WAS =IF(N45>N44+0.01,"PROPOSED WATTS IN UNDEFINED AREA","")
N51: Façade Warning | P51: logic
P52: WSEC 2015 if proposed lighting enter - check compliance else be blank
N53: Undefined Surface Warning | P53: if non-tradable light entered without cateory throw error. If okay then:
N54: =IF(N47,IF('LTG-EXT'!G28>0,"- "&IF('LTG-EXT'!G44>0,"Non-Tradable and tradable information are incomplete. ","Tradable information is incomplete. "),IF('LTG-EXT'!G44>0,"Non-Tradable information is incomplete.","")),"") ->  | O54: old formula =IF(N46=1,"Error: Non-tradable allowed and proposed surfaces do not match.","") | P54: if no grace and grace =0 then flying colors
N55: Error Msg for LTG-EXT!A51 | O55: new has " " so that complies does not show | P55: if NOT(no grace and grace =0) then fail all items
N56: =IF(N46>0,IF(N52<>"",N52,IF(N54<>"",N54,"")),"") ->  | P56: if not no grace but grace=0 then xxxxx
N57: Fail Msg
N58: =IF(OR(N46>0,'LTG-EXT'!E28>0),IF(Zone=5,"LIGHTING ZONE IS NOT SPECIFIED",IF(ExtCalculationScope=5,"CALCULATION SCOPE IS NOT SPECIFIED",IF(OR(N52<>"",N54<>""),"DOES NOT COMPLY - DATA INCOMPLETE", IF(SUM(R33:R40)=0,IF(Site_Remaining>=0,"COMPLIES WITH " & N59,"TRADABLE EXCEEDS " &N59 &": DOES NOT COMPLY"),IF(Site_Remaining>=0,"NON-TRADABLE EXCEEDS " &N59&": DOES NOT COMPLY","BOTH SECTIONS EXCEED " &N59&": DOES NOT COMPLY"))))),"") -> 
N59: =IF(ExtAlt_LT50pct,"MAX. ALLOWANCE","MAX. ALLOWANCE") -> MAX. ALLOWANCE | O59: was: =IF(ExtAlt_LT50pct,"ALTERATION ALLOWANCE","SITE ALLOWANCE")

Sheet LTG-CHK
A1: Lighting, Motor, and Electrical Permit Checklist, Pg. 1 | F1: LTG-CHK
A2: ='LTG-SUM'!A2 -> 2015 Washington State Energy Code Compliance Forms for Commercial Buildings including R2, R3, R4 over 3 stories and all R1 | F2: ='LTG-SUM'!G2 -> Revised August 2016
A3: Project Title: | C3: =IF('LTG-SUM'!C3="1 - This title will copy onto other forms","Fill this line out on LGT-SUM",'LTG-SUM'!C3) -> Fill this line out on LGT-SUM | E3: Date | F3: ='LTG-SUM'!G3 -> 2016-07-01
A5: Applicability (yes,no,na) | B5: Code Section | C5: Component | D5: Compliance information required in permit documents | E5: Location in Documents | F5: Building Department Notes
A6: LIGHTING CONTROLS
B7: C405.2 | C7: Lighting controls, general | D7: For all lighting fixtures, indicate lighting control method on plans for spaces and lighting zone(s) served, or exception taken
B8: C405.2 | C8: Luminaire level lighting controls (LLLC) | D8: Indicate on plans all fixtures provided with LLLC in lieu of C405.2 lighting controls; provide description of control capabilities and performance parameters
B9: C405.1 | C9: Lighting in dwelling units | D9: For permanently installed lighting fixtures in dwelling units, indicate lighting control method on plans for spaces and lighting zone(s) served, or demonstrate compliance with high efficacy exception
B10: C405.2.3 C405.2.1.1 C405.2.2.2 C405.2.4 C405.2.5 | C10: Manual controls | D10: Indicate on plans the method of manual lighting control (whether combined with occupancy sensor, automatic light reduction, daylight responsive or specific application controls), location of manual control device and area or specifice application it serves
B11: C405.2.2.1 C405.2.2.2 C405.2.3 | C11: Manual interior lighting controls | D11: Indicate on plans which method of manual 50% lighting load reduction is provided, or whether lighting load is reduced via occupancy sensors or daylight responsive controls
B12: C405.2.2 | C12: Method of automatic shut-off control | D12: Indicate on plans the method of automatic shut-off control during unoccupied periods (occupancy sensor or time switch) for all lighting zones;
D13: Indicate locations where automatic shutoff is provided by other methods (occupancy sensor or digital timer switch) or which time switch control exception applies
B14: C405.2.1 C405.2.1.1 | C14: Occupancy sensor controls | D14: Indicate on plans the spaces served by occupancy sensors;
D15: Indicate whether occupancy sensor controls are configured to be manual-on, automatic 50%-on, or serve a space eligible for automatic 100%-on per exception
B16: C405.2.1.2 | C16: Occupancy sensor controls - warehouses | D16: Indicate aisleways and open areas in warehouse spaces provided with occupancy sensor controls that reduce lighting power by 50%
B17: C405.2.6 | C17: Digital timer switch | D17: Indicate required digital timer switch control function when control is used
B18: C405.2.2.1 | C18: Automatic time switch controls | D18: Indicate locations of override switches on plans and the lighting zone(s) served, include area sq. ft.
B19: C405.2.4.2 C405.2.4.3 | C19: Daylight zones - Sidelight and toplight | D19: Indicate primary and secondary sidelight daylight zone areas on plans, include sq. ft.;
D20: Indicate toplight daylight zone areas on plans, include sq. ft.;
D21: For small vertical fenestration assemblies (rough opening less than 10 percent of primary daylight zone) where daylight responsive controls are not required, provide fenestration area to daylight zone calculation(s)
B22: C405.2.4 | C22: Daylight responsive controls | D22: Indicate on plans lighting zone(s) served by daylight responsive controls;
D23: Identify sidelight and toplight daylight zones that are not provided with daylight sensing controls and the exception(s) that apply;
D24: Indicate on plans the lighting load reduction method - continuous dimming, or stepped dimming that provides at least two even steps between 0%-100% of rated power;
D25: Indicate that daylight sensing controls are configured to completely shut off all controlled lights in the lighting zone
B26: C405.2.5 | C26: Additional controls - Specific application lighting controls | D26: Identify spaces and lighting fixtures on plans that require specific application lighting controls per this section
B27: C405.2.5 - Items 1&2 | C27: Display and accent lighting | D27: Indicate on plans that display and accent lighting, and display case lighting are controlled independently from both general area lighting and other lighting applications within the same space;
D28: Indicate manual and automatic lighting control method
A29: Lighting, Motor, and Electrical Permit Checklist, Pg. 2 | F29: LTG-CHK
A30: =A$2 -> 2015 Washington State Energy Code Compliance Forms for Commercial Buildings including R2, R3, R4 over 3 stories and all R1 | F30: =$F$2 -> Revised August 2016
A31: Project Title: | C31: =$C$3 -> Fill this line out on LGT-SUM | E31: Date | F31: =$F$3 -> 2016-07-01
A33: Applicability (yes,no,na) | B33: Code Section | C33: Component | D33: Compliance information required in permit documents | E33: Location in Documents | F33: Building Department Notes
B34: C405.2.5 - Item 3 | C34: Hotel/motel guest rooms | D34: Indicate method of automatic control - vacancy or captive key control of all installed luminaires and switched receptacles in guest room
B35: C405.2.5 - Item 4 | C35: Supplemental task lighting | D35: Indicate method and location of automatic shut-off vacancy control for supplemental task lighting, including under-shelf or under-cabinet lighting
B36: C405.2.5 - Item 5 | C36: Lighting for non-visual applications | D36: Indicate on plans eligible non-visual lighting applications, include sq. ft. area of each lighting control zone;
D37: Indicate on plans that non-visual lighting are controlled independently from both general area lighting and other lighting applications within the same space;
D38: Indicate method of manual lighting control and applicable automatic lighting control
B39: C405.2.5 - Item 6 | C39: Lighting equipment for sale or demonstration | D39: Indicate on plans that lighting equipment for sale or demonstration are controlled independently from both general area lighting and other lighting applications within the same space;
D40: Indicate method of manual lighting control and applicable automatic lighting control
B41: C405.2.5 - Item 7 | C41: Means of egress lighting | D41: Identify on plans egress fixtures that function as both normal and emergency means of egress illumination;
D42: Provide calculation of lighting power density of total egress lighting;
D43: If total egress lighting power density is greater than 0.02 W/sq. ft., indicate on plans egress fixtures requiring automatic shut-off during unoccupied periods;
D44: Indicate method of automatic shut-off control
B45: C405.2.7 | C45: Exterior lighting controls | D45: Indicate on exterior lighting plans and fixture schedules the automatic lighting control method, control sequence, and locations served;
D46: For building façade and landscape lighting, indicate automatic controls shut off lighting as a function of dawn/dusk and fixed opening/closing time;
D47: For all other exierior lighting, indicate automatic controls shut off lighting as a function of available daylight; include control sequence that also reduces lighting power by at least 30% between 12am-6am, or from 1 hour after closing to 1 hour before opening, or based upon motion sensor
B48: C405.5.1 | C48: Exterior building grounds lighting controls | D48: For building grounds fixtures greater than 100 watts, indicate on plans whether fixtures have efficacy greater than 80 lumens or; are controlled by motion sensor, or are exempt lighting per C405.5.2
B49: C405.2.5 | C49: Area controls - Master control switches and circuit power limit | D49: Indicate location(s) of master control switch(es) intended to control multiple independent switches; circuit breaker may not be used as a master control switch;
D50: Verify that no 20 amp circuit controlled by a single switch or automatic control is loaded beyond 80%
B51: C406.4 | C51: Enhanced digital lighting controls | D51: To comply with additional efficiency package option, indicate on plans all interior lighting fixtures that are individually addressed and provided with continuous dimming, or exception taken;
D52: Include calculation of percent total installed interior lighting power that is configured with required enhanced lighting control functions (min 90% to comply with additional efficiency package option)
B53: C405.13 C408.3 | C53: Lighting system functional testing | D53: If claiming lighting system commissioning exemption provide supporting calculation;
D54: Identify applicable commissioning documentation requirements per Section C408 or eligibility for exception;
D55: Provide written procedures for functional testing of all automatic controls and describe the expected system response
A56: Lighting, Motor, and Electrical Permit Checklist, Pg. 3 | F56: LTG-CHK
A57: =A$2 -> 2015 Washington State Energy Code Compliance Forms for Commercial Buildings including R2, R3, R4 over 3 stories and all R1 | F57: =$F$2 -> Revised August 2016
A58: Project Title: | C58: =$C$3 -> Fill this line out on LGT-SUM | E58: Date | F58: =$F$3 -> 2016-07-01
A60: Applicability (yes,no,na) | B60: Code Section | C60: Component | D60: Compliance information required in permit documents | E60: Location in Documents | F60: Building Department Notes
A61: INTERIOR LIGHTING POWER & EFFICACY
B62: C405.4.1 C405.4.1 C405.4.2 | C62: Total connected interior lighting power | D62: Include all luminaires in lighting fixture schedule; indicate fixture types, lamps, ballasts, and manufacturer's rated watts per fixture;
D63: Identify spaces eligible for lighting power exemption on plans and in compliance forms; indicate the exception applied;
D64: Identify lighting equipment eligible for lighting power exemption in fixture schedule and in compliance forms; indicate the exception applied;
D65: Indicate that exempt lighting equipment is in addition to general area lighting and is controlled independently
B66: C405.3 | C66: Exit signs | D66: Indicate location of exit signs on plans and rated watts per fixture in lighting fixture schedule (maximum 5 watts per fixture)
B67: C405.1 | C67: Lighting in dwelling units - lamp efficacy | D67: If high efficacy exception is applied to permanently installed lighting fixtures in dwelling units, indicate in lighting fixture schedule if lamps in fixtures are high efficacy per R404.1. Calculate percentage of fixtures with high efficacy lamps in project (min 75% to comply with exception).
B68: C406.3 | C68: Reduced lighting power density - dwelling unit lamp efficacy | D68: For project with dwelling units, to comply with additional efficiency package option indicate in lighting fixture schedule if lamps in fixtures have efficacy rating of 60 lumens per watt or more. Calculate percentage of fixtures with lamps that have this efficacy rating (min 95% to comply with option).
B69: Lighting Power Calculation - Indicate compliance path taken
B70: C405.4.2.1 | C70: Building Area Method | D70: Complete required compliance forms – proposed wattage per building area does not exceed maximum allowed wattage per building area. Identify locations of building areas on plans
B71: C405.4.2.2 | C71: Space-By-Space Method | D71: Complete required compliance forms – total proposed wattage does not exceed maximum allowed wattage. Identify locations of space types on plans, including retail display areas, lobby art & exhibit display areas, and ceiling heights as applicable
B72: C406.3 | C72: Reduced lighting power density | D72: To comply with additional efficiency package option, demonstrate in compliance forms that total connected interior lighting wattage is 75% less than the total maximum allowed lighting wattage via Building Area Method or Space-By-Space Method
A73: EXTERIOR LIGHTING POWER & EFFICACY
B74: C405.5.2 | C74: Total connected exterior lighting power | D74: Include all luminaires in lighting fixture schedule; indicate fixture types, lamps, ballasts, and manufacturer's rated watts per fixture;
D75: Identify exterior applications eligible for lighting power exemption on plans and in compliance forms; indicate exception applied;
D76: Indicate that exempt exterior lighting is controlled independently from non-exempt exterior lighting; include exception claimed for each fixture or group of fixtures under exception category
B77: Table C405.5.2(1) | C77: Exterior lighting zone | D77: Indicate building exterior lighting zone as defined by the AHJ
B78: C405.5.1 | C78: Exterior building grounds lighting | D78: For building grounds fixtures rated at greater than 100 watts that are complying based on efficacy, indicate rated lamp efficacy (in lumens per watt) in fixture schedule
B79: C405.5.2 | C79: Exterior lighting power calculations | D79: Complete required compliance form – proposed wattage for exterior lighting plus base site allowed does not exceed maximum allowed
A80: Lighting, Motor, and Electrical Permit Checklist, Pg. 4 | F80: LTG-CHK
A81: =A$2 -> 2015 Washington State Energy Code Compliance Forms for Commercial Buildings including R2, R3, R4 over 3 stories and all R1 | F81: =$F$2 -> Revised August 2016
A82: Project Title: | C82: =$C$3 -> Fill this line out on LGT-SUM | E82: Date | F82: =$F$3 -> 2016-07-01
A84: Applicability (yes,no,na) | B84: Code Section | C84: Component | D84: Compliance information required in permit documents | E84: Location in Documents | F84: Building Department Notes
A85: MOTORS & TRANSFORMERS
B86: C405.6 | C86: Electrical tranformers | D86: Include electrical transformer schedule on electrical plans; indicate transformer size, efficiency, or exception taken
B87: C405.7 | C87: Dwelling unit electrical energy consumption | D87: Indicate on electrical plans that each dwelling unit in Group R-2 has a separate electrical energy meter
B88: C405.8 | C88: Electric motor efficiency | D88: Include all motors, including fractional hp motors, in electric motor schedule on electrical plans; indicate hp, rpm, rated efficiency, or exception applied
B89: C405.9.1 | C89: Elevator cabs | D89: For luminaires in each elevator cab, provide calculated average efficacy of combined fixtures that indicates efficacy is not less than 35 lumens per watt;
D90: Indicate rated watts per cfm for elevator cab ventilation fans do not exceed 0.33 watts per cfm;
D91: Indicate automatic controls that de-energize lighting and ventilation fans when elevator is stopped and unoocupied for a period of 15 minutes or more
B92: C405.9.2 | C92: Escalators and moving walks | D92: Indicate escalators comply with ASME A17.1/CSA B44; automatic controls are configured to reduce operational speed to the minimum permitted when not in use
B93: C405.9.3 | C93: Regenerative drive | D93: Indicate all one-way down or reversible escalators are provided with a variable frequency regenerative drive
B94: C405.10 | C94: Controlled receptacles | D94: Identify all controlled and uncontrolled receptables on electrical plans in each space in which they are required; include receptacle configuration such as spacing between controlled and uncontrolled, duplex devices, etc;
D95: Indicate on plans whether the method of automatic control for each controlled receptable zone is by occupant sensor or programmable time-of-day control
A96: If "no" is selected for any question, provide explanation:
A103: Yes
A104: No
A105: N.A.
A112: End of Lighting, Motor & Transformer Permit Documents Checklist
A116: NA
A117: No
A118: Yes
